{"text_format":"1","workbook":"xlsx","n_sheets":9,"sheets":["Main Report","STARWARS","ESP","ROTJ","POTF","RARE","DROIDS","EWOK","PURCHASE HISTORY"],"not_rendered":{"charts":0,"images":0,"macros":1,"external_links":0,"defined_names":138,"comments":0,"pivot_tables":0},"unopened":[],"bounds":{"document_bytes":16777216,"sheet_cells":100000,"rows_first":2000,"rows_last":500,"rows_between":2000,"halvings":0,"cell_chars":16384,"cell_head_chars":4096},"cells_cut":0,"cells_raw":0,"read":"whole","date_system":"1900"}

{"sheet":"Main Report","index":0,"n_rows":168,"n_cols":35,"rows_kept":168,"cut":false,"hidden":false,"merged":[[5,7,5,8]]}
["Vintage Items (from 1977 to 1984)",null,null,null,null,null,null,null,null,null,null,null,null,null,null,null,null,null,null,null,null,null,null,null,null,null,null,null,null,null,null,null,null,null,0]
[null,null,null,null,null,null,null,null,null,null,null,null,null,null,null,null,null,null,null,null,null,null,null,null,null,null,null,null,null,null,null,null,null,null,0]
["Loose Figures",null,null,null,null,null,null,null,null,null,null,null,null,null,null,null,null,null,null,null,null,null,null,null,null,null,null,null,null,null,null,null,null,null,0]
["All complete figures are priced for C-9+ (near mint to mint, AFA 85 or higher) or better condition unless noted.  Prices will be severely reduced for less than C-9+ condition.",null,null,null,null,null,null,null,null,null,null,null,null,null,null,null,null,null,null,null,null,null,null,null,null,null,null,null,null,null,null,null,null,null,0]
[null,"Grade","Price","C-9+ (AFA 85)","Notes"]
[null,null,null,null,null,null,null,"IGNORE",null,"NAMES",null,null,null,null,null,null,null,null,null,null,null,null,null,null,null,null,null,null,null,null,null,null,null,null,0]
["Star Wars",null,null,null,null,null,null,"Ratings","Percentages","BENSW",null,null,null,null,null,null,null,null,null,null,null,null,null,null,null,null,null,null,null,null,null,null,null,null,0]
[null,null,null,null,null,null,null,"C-9",0.5,"BOBASW",null,null,null,null,null,null,null,null,null,null,null,null,null,null,null,null,null,null,null,null,null,null,null,null,0]
["Ben Kenobi",null,{"$f":"IFERROR(IF((VLOOKUP(B9,INDIRECT($J$7),2,FALSE)*D9)<1,1,ROUNDDOWN((VLOOKUP(B9,INDIRECT($J$7),2,FALSE)*D9),0)),\"\")","v":""},25,null,null,null,"C-8",0.5,"SEETHREESW",null,null,null,null,null,null,null,null,null,null,null,null,null,null,null,null,null,null,null,null,null,null,null,null,0]
["Boba Fett",null,{"$f":"IFERROR(IF((VLOOKUP(B10,INDIRECT($J$8),2,FALSE)*D10)<1,1,ROUNDDOWN((VLOOKUP(B10,INDIRECT($J$8),2,FALSE)*D10),0)),\"\")","v":""},20,null,null,null,"C-7",0.5,"CHEWSW",null,null,null,null,null,null,null,null,null,null,null,null,null,null,null,null,null,null,null,null,null,null,null,null,0]
["C-3PO",null,{"$f":"IFERROR(IF((VLOOKUP(B11,INDIRECT($J$9),2,FALSE)*D11)<1,1,ROUNDDOWN((VLOOKUP(B11,INDIRECT($J$9),2,FALSE)*D11),0)),\"\")","v":""},20,null,null,null,"C-6",0.3,"DVSW",null,null,null,null,null,null,null,null,null,null,null,null,null,null,null,null,null,null,null,null,null,null,null,null,0]
["Chewbacca",null,{"$f":"IFERROR(IF((VLOOKUP(B12,INDIRECT($J$10),2,FALSE)*D12)<1,1,ROUNDDOWN((VLOOKUP(B12,INDIRECT($J$10),2,FALSE)*D12),0)),\"\")","v":""},10,null,null,null,"C-5",0.5,"DSCSW",null,null,null,null,null,null,null,null,null,null,null,null,null,null,null,null,null,null,null,null,null,null,null,null,0]
["Darth Vader",null,{"$f":"IFERROR(IF((VLOOKUP(B13,INDIRECT($J$11),2,FALSE)*D13)<1,1,ROUNDDOWN((VLOOKUP(B13,INDIRECT($J$11),2,FALSE)*D13),0)),\"\")","v":""},20,null,null,null,"C-4",0.5,"DSDSW",null,null,null,null,null,null,null,null,null,null,null,null,null,null,null,null,null,null,null,null,null,null,null,null,0]
["Death Squad Commander",null,{"$f":"IFERROR(IF((VLOOKUP(B14,INDIRECT($J$12),2,FALSE)*D14)<1,1,ROUNDDOWN((VLOOKUP(B14,INDIRECT($J$12),2,FALSE)*D14),0)),\"\")","v":""},8,null,null,null,"C-3",0.5,"GRESW",null,null,null,null,null,null,null,null,null,null,null,null,null,null,null,null,null,null,null,null,null,null,null,null,0]
["Death Star Droid      ",null,{"$f":"IFERROR(IF((VLOOKUP(B15,INDIRECT($J$13),2,FALSE)*D15)<1,1,ROUNDDOWN((VLOOKUP(B15,INDIRECT($J$13),2,FALSE)*D15),0)),\"\")","v":""},20,null,null,null,"C-2",0.5,"HHSW",null,null,null,null,null,null,null,null,null,null,null,null,null,null,null,null,null,null,null,null,null,null,null,null,0]
["Greedo",null,{"$f":"IFERROR(IF((VLOOKUP(B16,INDIRECT($J$14),2,FALSE)*D16)<1,1,ROUNDDOWN((VLOOKUP(B16,INDIRECT($J$14),2,FALSE)*D16),0)),\"\")","v":""},7,null,null,null,"C-1",0.5,"HSLHSW",null,null,null,null,null,null,null,null,null,null,null,null,null,null,null,null,null,null,null,null,null,null,null,null,0]
["Hammerhead",null,{"$f":"IFERROR(IF((VLOOKUP(B17,INDIRECT($J$15),2,FALSE)*D17)<1,1,ROUNDDOWN((VLOOKUP(B17,INDIRECT($J$15),2,FALSE)*D17),0)),\"\")","v":""},5,null,null,null,"Incomplete",0.5,"HSSHSW",null,null,null,null,null,null,null,null,null,null,null,null,null,null,null,null,null,null,null,null,null,null,null,null,0]
["Han Solo (Large Head)",null,{"$f":"IFERROR(IF((VLOOKUP(B18,INDIRECT($J$16),2,FALSE)*D18)<1,1,ROUNDDOWN((VLOOKUP(B18,INDIRECT($J$16),2,FALSE)*D18),0)),\"\")","v":""},15,null,null,null,null,null,"JAWSW",null,null,null,null,null,null,null,null,null,null,null,null,null,null,null,null,null,null,null,null,null,null,null,null,0]
["Han Solo (Small Head)",null,{"$f":"IFERROR(IF((VLOOKUP(B19,INDIRECT($J$17),2,FALSE)*D19)<1,1,ROUNDDOWN((VLOOKUP(B19,INDIRECT($J$17),2,FALSE)*D19),0)),\"\")","v":""},30,null,null,null,null,null,"LEIASW",null,null,null,null,null,null,null,null,null,null,null,null,null,null,null,null,null,null,null,null,null,null,null,null,0]
["Jawa",null,{"$f":"IFERROR(IF((VLOOKUP(B20,INDIRECT($J$18),2,FALSE)*D20)<1,1,ROUNDDOWN((VLOOKUP(B20,INDIRECT($J$18),2,FALSE)*D20),0)),\"\")","v":""},12,null,null,null,null,null,"LUKESW",null,null,null,null,null,null,null,null,null,null,null,null,null,null,null,null,null,null,null,null,null,null,null,null,0]
["Leia",null,{"$f":"IFERROR(IF((VLOOKUP(B21,INDIRECT($J$19),2,FALSE)*D21)<1,1,ROUNDDOWN((VLOOKUP(B21,INDIRECT($J$19),2,FALSE)*D21),0)),\"\")","v":""},35,null,null,null,null,null,"LUKEXSW",null,null,null,null,null,null,null,null,null,null,null,null,null,null,null,null,null,null,null,null,null,null,null,null,0]
["Luke",null,{"$f":"IFERROR(IF((VLOOKUP(B22,INDIRECT($J$20),2,FALSE)*D22)<1,1,ROUNDDOWN((VLOOKUP(B22,INDIRECT($J$20),2,FALSE)*D22),0)),\"\")","v":""},35,null,null,null,null,null,"PDSW",null,null,null,null,null,null,null,null,null,null,null,null,null,null,null,null,null,null,null,null,null,null,null,null,0]
["Luke X-Wing",null,{"$f":"IFERROR(IF((VLOOKUP(B23,INDIRECT($J$21),2,FALSE)*D23)<1,1,ROUNDDOWN((VLOOKUP(B23,INDIRECT($J$21),2,FALSE)*D23),0)),\"\")","v":""},10,null,null,null,null,null,"RTWOSW",null,null,null,null,null,null,null,null,null,null,null,null,null,null,null,null,null,null,null,null,null,null,null,null,0]
["Power Droid",null,{"$f":"IFERROR(IF((VLOOKUP(B24,INDIRECT($J$22),2,FALSE)*D24)<1,1,ROUNDDOWN((VLOOKUP(B24,INDIRECT($J$22),2,FALSE)*D24),0)),\"\")","v":""},9,null,null,null,null,null,"RFIVESW",null,null,null,null,null,null,null,null,null,null,null,null,null,null,null,null,null,null,null,null,null,null,null,null,0]
["R2-D2",null,{"$f":"IFERROR(IF((VLOOKUP(B25,INDIRECT($J$23),2,FALSE)*D25)<1,1,ROUNDDOWN((VLOOKUP(B25,INDIRECT($J$23),2,FALSE)*D25),0)),\"\")","v":""},30,null,null,null,null,null,"STSW",null,null,null,null,null,null,null,null,null,null,null,null,null,null,null,null,null,null,null,null,null,null,null,null,0]
["R5-D4",null,{"$f":"IFERROR(IF((VLOOKUP(B26,INDIRECT($J$24),2,FALSE)*D26)<1,1,ROUNDDOWN((VLOOKUP(B26,INDIRECT($J$24),2,FALSE)*D26),0)),\"\")","v":""},12,null,null,null,null,null,"STORMSW",null,null,null,null,null,null,null,null,null,null,null,null,null,null,null,null,null,null,null,null,null,null,null,null,0]
["Snaggletooth",null,{"$f":"IFERROR(IF((VLOOKUP(B27,INDIRECT($J$25),2,FALSE)*D27)<1,1,ROUNDDOWN((VLOOKUP(B27,INDIRECT($J$25),2,FALSE)*D27),0)),\"\")","v":""},10,null,null,null,null,null,"TRSW",null,null,null,null,null,null,null,null,null,null,null,null,null,null,null,null,null,null,null,null,null,null,null,null,0]
["Stormtrooper",null,{"$f":"IFERROR(IF((VLOOKUP(B28,INDIRECT($J$26),2,FALSE)*D28)<1,1,ROUNDDOWN((VLOOKUP(B28,INDIRECT($J$26),2,FALSE)*D28),0)),\"\")","v":""},12,null,null,null,null,null,"WMSW",null,null,null,null,null,null,null,null,null,null,null,null,null,null,null,null,null,null,null,null,null,null,null,null,0]
["Tusken Raider",null,{"$f":"IFERROR(IF((VLOOKUP(B29,INDIRECT($J$27),2,FALSE)*D29)<1,1,ROUNDDOWN((VLOOKUP(B29,INDIRECT($J$27),2,FALSE)*D29),0)),\"\")","v":""},10,null,null,null,null,null,null,null,null,null,null,null,null,null,null,null,null,null,null,null,null,null,null,null,null,null,null,null,null,null,null,0]
["Walrusman",null,{"$f":"IFERROR(IF((VLOOKUP(B30,INDIRECT($J$28),2,FALSE)*D30)<1,1,ROUNDDOWN((VLOOKUP(B30,INDIRECT($J$28),2,FALSE)*D30),0)),\"\")","v":""},8,null,null,null,null,null,null,null,null,null,null,null,null,null,null,null,null,null,null,null,null,null,null,null,null,null,null,null,null,null,null,0]
[null,null,null,null,null,null,null,null,null,null,null,null,null,null,null,null,null,null,null,null,null,null,null,null,null,null,null,null,null,null,null,null,null,null,0]
[null,null,null,null,null,null,null,null,null,null,null,null,null,null,null,null,null,null,null,null,null,null,null,null,null,null,null,null,null,null,null,null,null,null,0]
["Empire Strikes Back",null,null,"C-9+ (AFA 85)",null,null,null,null,null,"TWONESP",null,null,null,null,null,null,null,null,null,null,null,null,null,null,null,null,null,null,null,null,null,null,null,null,0]
[null,null,null,null,null,null,null,null,null,"FLOMESP",null,null,null,null,null,null,null,null,null,null,null,null,null,null,null,null,null,null,null,null,null,null,null,null,0]
["2-1B",null,{"$f":"IFERROR(IF((VLOOKUP(B35,INDIRECT($J$33),2,FALSE)*D35)<1,1,ROUNDDOWN((VLOOKUP(B35,INDIRECT($J$33),2,FALSE)*D35),0)),\"\")","v":""},6,null,null,null,null,null,"ATTCESP",null,null,null,null,null,null,null,null,null,null,null,null,null,null,null,null,null,null,null,null,null,null,null,null,0]
["4-LOM",null,{"$f":"IFERROR(IF((VLOOKUP(B36,INDIRECT($J$34),2,FALSE)*D36)<1,1,ROUNDDOWN((VLOOKUP(B36,INDIRECT($J$34),2,FALSE)*D36),0)),\"\")","v":""},6,null,null,null,null,null,"ATATDESP",null,null,null,null,null,null,null,null,null,null,null,null,null,null,null,null,null,null,null,null,null,null,null,null,0]
["AT-AT Commander",null,{"$f":"IFERROR(IF((VLOOKUP(B37,INDIRECT($J$35),2,FALSE)*D37)<1,1,ROUNDDOWN((VLOOKUP(B37,INDIRECT($J$35),2,FALSE)*D37),0)),\"\")","v":""},2,null,null,null,null,null,"BGBESP",null,null,null,null,null,null,null,null,null,null,null,null,null,null,null,null,null,null,null,null,null,null,null,null,0]
["AT-AT Driver",null,{"$f":"IFERROR(IF((VLOOKUP(B38,INDIRECT($J$36),2,FALSE)*D38)<1,1,ROUNDDOWN((VLOOKUP(B38,INDIRECT($J$36),2,FALSE)*D38),0)),\"\")","v":""},5,null,null,null,null,null,"BGWESP",null,null,null,null,null,null,null,null,null,null,null,null,null,null,null,null,null,null,null,null,null,null,null,null,0]
["Bespin Guard Black",null,{"$f":"IFERROR(IF((VLOOKUP(B39,INDIRECT($J$37),2,FALSE)*D39)<1,1,ROUNDDOWN((VLOOKUP(B39,INDIRECT($J$37),2,FALSE)*D39),0)),\"\")","v":""},5,null,null,null,null,null,"BOSESP",null,null,null,null,null,null,null,null,null,null,null,null,null,null,null,null,null,null,null,null,null,null,null,null,0]
["Bespin Guard White",null,{"$f":"IFERROR(IF((VLOOKUP(B40,INDIRECT($J$38),2,FALSE)*D40)<1,1,ROUNDDOWN((VLOOKUP(B40,INDIRECT($J$38),2,FALSE)*D40),0)),\"\")","v":""},5,null,null,null,null,null,"SEETHREESP",null,null,null,null,null,null,null,null,null,null,null,null,null,null,null,null,null,null,null,null,null,null,null,null,0]
["Bossk",null,{"$f":"IFERROR(IF((VLOOKUP(B41,INDIRECT($J$39),2,FALSE)*D41)<1,1,ROUNDDOWN((VLOOKUP(B41,INDIRECT($J$39),2,FALSE)*D41),0)),\"\")","v":""},10,null,null,null,null,null,"CCPESP",null,null,null,null,null,null,null,null,null,null,null,null,null,null,null,null,null,null,null,null,null,null,null,null,0]
["C-3PO",null,{"$f":"IFERROR(IF((VLOOKUP(B42,INDIRECT($J$40),2,FALSE)*D42)<1,1,ROUNDDOWN((VLOOKUP(B42,INDIRECT($J$40),2,FALSE)*D42),0)),\"\")","v":""},5,null,null,null,null,null,"DENESP",null,null,null,null,null,null,null,null,null,null,null,null,null,null,null,null,null,null,null,null,null,null,null,null,0]
["Cloud Car Pilot",null,{"$f":"IFERROR(IF((VLOOKUP(B43,INDIRECT($J$41),2,FALSE)*D43)<1,1,ROUNDDOWN((VLOOKUP(B43,INDIRECT($J$41),2,FALSE)*D43),0)),\"\")","v":""},12,null,null,null,null,null,"FXESP",null,null,null,null,null,null,null,null,null,null,null,null,null,null,null,null,null,null,null,null,null,null,null,null,0]
["Dengar",null,{"$f":"IFERROR(IF((VLOOKUP(B44,INDIRECT($J$42),2,FALSE)*D44)<1,1,ROUNDDOWN((VLOOKUP(B44,INDIRECT($J$42),2,FALSE)*D44),0)),\"\")","v":""},4,null,null,null,null,null,"HANBESP",null,null,null,null,null,null,null,null,null,null,null,null,null,null,null,null,null,null,null,null,null,null,null,null,0]
["FX-7",null,{"$f":"IFERROR(IF((VLOOKUP(B45,INDIRECT($J$43),2,FALSE)*D45)<1,1,ROUNDDOWN((VLOOKUP(B45,INDIRECT($J$43),2,FALSE)*D45),0)),\"\")","v":""},5,null,null,null,null,null,"HANHESP",null,null,null,null,null,null,null,null,null,null,null,null,null,null,null,null,null,null,null,null,null,null,null,null,0]
["Han Bespin",null,{"$f":"IFERROR(IF((VLOOKUP(B46,INDIRECT($J$44),2,FALSE)*D46)<1,1,ROUNDDOWN((VLOOKUP(B46,INDIRECT($J$44),2,FALSE)*D46),0)),\"\")","v":""},10,null,null,null,null,null,"HANSTESP",null,null,null,null,null,null,null,null,null,null,null,null,null,null,null,null,null,null,null,null,null,null,null,null,0]
["Han Hoth",null,{"$f":"IFERROR(IF((VLOOKUP(B47,INDIRECT($J$45),2,FALSE)*D47)<1,1,ROUNDDOWN((VLOOKUP(B47,INDIRECT($J$45),2,FALSE)*D47),0)),\"\")","v":""},8,null,null,null,null,null,"IGEIESP",null,null,null,null,null,null,null,null,null,null,null,null,null,null,null,null,null,null,null,null,null,null,null,null,0]
["Hoth Stormtrooper",null,{"$f":"IFERROR(IF((VLOOKUP(B48,INDIRECT($J$46),2,FALSE)*D48)<1,1,ROUNDDOWN((VLOOKUP(B48,INDIRECT($J$46),2,FALSE)*D48),0)),\"\")","v":""},10,null,null,null,null,null,"IMPCOMESP",null,null,null,null,null,null,null,null,null,null,null,null,null,null,null,null,null,null,null,null,null,null,null,null,0]
["IG-88",null,{"$f":"IFERROR(IF((VLOOKUP(B49,INDIRECT($J$47),2,FALSE)*D49)<1,1,ROUNDDOWN((VLOOKUP(B49,INDIRECT($J$47),2,FALSE)*D49),0)),\"\")","v":""},7,null,null,null,null,null,"LANESP",null,null,null,null,null,null,null,null,null,null,null,null,null,null,null,null,null,null,null,null,null,null,null,null,0]
["Imperial Commander",null,{"$f":"IFERROR(IF((VLOOKUP(B50,INDIRECT($J$48),2,FALSE)*D50)<1,1,ROUNDDOWN((VLOOKUP(B50,INDIRECT($J$48),2,FALSE)*D50),0)),\"\")","v":""},3,null,null,null,null,null,"LEIABCREWESP",null,null,null,null,null,null,null,null,null,null,null,null,null,null,null,null,null,null,null,null,null,null,null,null,0]
["Lando",null,{"$f":"IFERROR(IF((VLOOKUP(B51,INDIRECT($J$49),2,FALSE)*D51)<1,1,ROUNDDOWN((VLOOKUP(B51,INDIRECT($J$49),2,FALSE)*D51),0)),\"\")","v":""},6,null,null,null,null,null,"LEAIBTURTLESP",null,null,null,null,null,null,null,null,null,null,null,null,null,null,null,null,null,null,null,null,null,null,null,null,0]
["Leia Bespin (crewneck)",null,{"$f":"IFERROR(IF((VLOOKUP(B52,INDIRECT($J$50),2,FALSE)*D52)<1,1,ROUNDDOWN((VLOOKUP(B52,INDIRECT($J$50),2,FALSE)*D52),0)),\"\")","v":""},10,null,null,null,null,null,"LEIAHESP",null,null,null,null,null,null,null,null,null,null,null,null,null,null,null,null,null,null,null,null,null,null,null,null,0]
["Leia Bespin (turleneck)",null,{"$f":"IFERROR(IF((VLOOKUP(B53,INDIRECT($J$51),2,FALSE)*D53)<1,1,ROUNDDOWN((VLOOKUP(B53,INDIRECT($J$51),2,FALSE)*D53),0)),\"\")","v":""},15,null,null,null,null,null,"LOBESP",null,null,null,null,null,null,null,null,null,null,null,null,null,null,null,null,null,null,null,null,null,null,null,null,0]
["Leia Hoth",null,{"$f":"IFERROR(IF((VLOOKUP(B54,INDIRECT($J$52),2,FALSE)*D54)<1,1,ROUNDDOWN((VLOOKUP(B54,INDIRECT($J$52),2,FALSE)*D54),0)),\"\")","v":""},10,null,null,null,null,null,"LUKEBESP",null,null,null,null,null,null,null,null,null,null,null,null,null,null,null,null,null,null,null,null,null,null,null,null,0]
["Lobot",null,{"$f":"IFERROR(IF((VLOOKUP(B55,INDIRECT($J$53),2,FALSE)*D55)<1,1,ROUNDDOWN((VLOOKUP(B55,INDIRECT($J$53),2,FALSE)*D55),0)),\"\")","v":""},3,null,null,null,null,null,"LUKEHESP",null,null,null,null,null,null,null,null,null,null,null,null,null,null,null,null,null,null,null,null,null,null,null,null,0]
["Luke Bespin",null,{"$f":"IFERROR(IF((VLOOKUP(B56,INDIRECT($J$54),2,FALSE)*D56)<1,1,ROUNDDOWN((VLOOKUP(B56,INDIRECT($J$54),2,FALSE)*D56),0)),\"\")","v":""},15,null,null,null,null,null,"RTWOESP",null,null,null,null,null,null,null,null,null,null,null,null,null,null,null,null,null,null,null,null,null,null,null,null,0]
["Luke Hoth",null,{"$f":"IFERROR(IF((VLOOKUP(B57,INDIRECT($J$55),2,FALSE)*D57)<1,1,ROUNDDOWN((VLOOKUP(B57,INDIRECT($J$55),2,FALSE)*D57),0)),\"\")","v":""},15,null,null,null,null,null,"RECOESP",null,null,null,null,null,null,null,null,null,null,null,null,null,null,null,null,null,null,null,null,null,null,null,null,0]
["R2-D2 (sensorscope)",null,{"$f":"IFERROR(IF((VLOOKUP(B58,INDIRECT($J$56),2,FALSE)*D58)<1,1,ROUNDDOWN((VLOOKUP(B58,INDIRECT($J$56),2,FALSE)*D58),0)),\"\")","v":""},5,null,null,null,null,null,"RESOESP",null,null,null,null,null,null,null,null,null,null,null,null,null,null,null,null,null,null,null,null,null,null,null,null,0]
["Rebel Commander",null,{"$f":"IFERROR(IF((VLOOKUP(B59,INDIRECT($J$57),2,FALSE)*D59)<1,1,ROUNDDOWN((VLOOKUP(B59,INDIRECT($J$57),2,FALSE)*D59),0)),\"\")","v":""},2,null,null,null,null,null,"TIESP",null,null,null,null,null,null,null,null,null,null,null,null,null,null,null,null,null,null,null,null,null,null,null,null,0]
["Rebel Soldier",null,{"$f":"IFERROR(IF((VLOOKUP(B60,INDIRECT($J$58),2,FALSE)*D60)<1,1,ROUNDDOWN((VLOOKUP(B60,INDIRECT($J$58),2,FALSE)*D60),0)),\"\")","v":""},2,null,null,null,null,null,"UGBLUESP",null,null,null,null,null,null,null,null,null,null,null,null,null,null,null,null,null,null,null,null,null,null,null,null,0]
["TIE Pilot",null,{"$f":"IFERROR(IF((VLOOKUP(B61,INDIRECT($J$59),2,FALSE)*D61)<1,1,ROUNDDOWN((VLOOKUP(B61,INDIRECT($J$59),2,FALSE)*D61),0)),\"\")","v":""},6,null,null,null,null,null,"UGPURPLESP",null,null,null,null,null,null,null,null,null,null,null,null,null,null,null,null,null,null,null,null,null,null,null,null,0]
["Ugnaught (blue smock)",null,{"$f":"IFERROR(IF((VLOOKUP(B62,INDIRECT($J$60),2,FALSE)*D62)<1,1,ROUNDDOWN((VLOOKUP(B62,INDIRECT($J$60),2,FALSE)*D62),0)),\"\")","v":""},5,null,null,null,null,null,"YODABRWNESP",null,null,null,null,null,null,null,null,null,null,null,null,null,null,null,null,null,null,null,null,null,null,null,null,0]
["Ugnaught (purple smock)",null,{"$f":"IFERROR(IF((VLOOKUP(B63,INDIRECT($J$61),2,FALSE)*D63)<1,1,ROUNDDOWN((VLOOKUP(B63,INDIRECT($J$61),2,FALSE)*D63),0)),\"\")","v":""},5,null,null,null,null,null,"YODAOESP",null,null,null,null,null,null,null,null,null,null,null,null,null,null,null,null,null,null,null,null,null,null,null,null,0]
["Yoda Brown Snake",null,{"$f":"IFERROR(IF((VLOOKUP(B64,INDIRECT($J$62),2,FALSE)*D64)<1,1,ROUNDDOWN((VLOOKUP(B64,INDIRECT($J$62),2,FALSE)*D64),0)),\"\")","v":""},25,null,null,null,null,null,"ZUCESP",null,null,null,null,null,null,null,null,null,null,null,null,null,null,null,null,null,null,null,null,null,null,null,null,0]
["Yoda Orange Snake",null,{"$f":"IFERROR(IF((VLOOKUP(B65,INDIRECT($J$63),2,FALSE)*D65)<1,1,ROUNDDOWN((VLOOKUP(B65,INDIRECT($J$63),2,FALSE)*D65),0)),\"\")","v":""},15,null,null,null,null,null,null,null,null,null,null,null,null,null,null,null,null,null,null,null,null,null,null,null,null,null,null,null,null,null,null,0]
["Zuckuss",null,{"$f":"IFERROR(IF((VLOOKUP(B66,INDIRECT($J$64),2,FALSE)*D66)<1,1,ROUNDDOWN((VLOOKUP(B66,INDIRECT($J$64),2,FALSE)*D66),0)),\"\")","v":""},5,null,null,null,null,null,null,null,null,null,null,null,null,null,null,null,null,null,null,null,null,null,null,null,null,null,null,null,null,null,null,0]
[null,null,null,null,null,null,null,null,null,null,null,null,null,null,null,null,null,null,null,null,null,null,null,null,null,null,null,null,null,null,null,null,null,null,0]
[null,null,null,null,null,null,null,null,null,null,null,null,null,null,null,null,null,null,null,null,null,null,null,null,null,null,null,null,null,null,null,null,null,null,0]
["Return of the Jedi",null,null,"C-9+ (AFA 85)",null,null,null,null,null,"EIDROTJ",null,null,null,null,null,null,null,null,null,null,null,null,null,null,null,null,null,null,null,null,null,null,null,null,0]
[null,null,null,null,null,null,null,null,null,"AAROTJ",null,null,null,null,null,null,null,null,null,null,null,null,null,null,null,null,null,null,null,null,null,null,null,null,0]
["8D8",null,{"$f":"IFERROR(IF((VLOOKUP(B71,INDIRECT($J$69),2,FALSE)*D71)<1,1,ROUNDDOWN((VLOOKUP(B71,INDIRECT($J$69),2,FALSE)*D71),0)),\"\")","v":""},1,null,null,null,null,null,"ATSTROTJ",null,null,null,null,null,null,null,null,null,null,null,null,null,null,null,null,null,null,null,null,null,null,null,null,0]
["Admiral Ackbar",null,{"$f":"IFERROR(IF((VLOOKUP(B72,INDIRECT($J$70),2,FALSE)*D72)<1,1,ROUNDDOWN((VLOOKUP(B72,INDIRECT($J$70),2,FALSE)*D72),0)),\"\")","v":""},4,null,null,null,null,null,"BFROTJ",null,null,null,null,null,null,null,null,null,null,null,null,null,null,null,null,null,null,null,null,null,null,null,null,0]
["AT-ST Driver",null,{"$f":"IFERROR(IF((VLOOKUP(B73,INDIRECT($J$71),2,FALSE)*D73)<1,1,ROUNDDOWN((VLOOKUP(B73,INDIRECT($J$71),2,FALSE)*D73),0)),\"\")","v":""},1,null,null,null,null,null,"BIKROTJ",null,null,null,null,null,null,null,null,null,null,null,null,null,null,null,null,null,null,null,null,null,null,null,null,0]
["Bib Fortuna",null,{"$f":"IFERROR(IF((VLOOKUP(B74,INDIRECT($J$72),2,FALSE)*D74)<1,1,ROUNDDOWN((VLOOKUP(B74,INDIRECT($J$72),2,FALSE)*D74),0)),\"\")","v":""},3,null,null,null,null,null,"BWIROTJ",null,null,null,null,null,null,null,null,null,null,null,null,null,null,null,null,null,null,null,null,null,null,null,null,0]
["Biker Scout     ",null,{"$f":"IFERROR(IF((VLOOKUP(B75,INDIRECT($J$73),2,FALSE)*D75)<1,1,ROUNDDOWN((VLOOKUP(B75,INDIRECT($J$73),2,FALSE)*D75),0)),\"\")","v":""},10,null,null,null,null,null,"CHIEROTJ",null,null,null,null,null,null,null,null,null,null,null,null,null,null,null,null,null,null,null,null,null,null,null,null,0]
["B-Wing Pilot",null,{"$f":"IFERROR(IF((VLOOKUP(B76,INDIRECT($J$74),2,FALSE)*D76)<1,1,ROUNDDOWN((VLOOKUP(B76,INDIRECT($J$74),2,FALSE)*D76),0)),\"\")","v":""},1,null,null,null,null,null,"EMPROTJ",null,null,null,null,null,null,null,null,null,null,null,null,null,null,null,null,null,null,null,null,null,null,null,null,0]
["Chief Chirpa",null,{"$f":"IFERROR(IF((VLOOKUP(B77,INDIRECT($J$75),2,FALSE)*D77)<1,1,ROUNDDOWN((VLOOKUP(B77,INDIRECT($J$75),2,FALSE)*D77),0)),\"\")","v":""},3,null,null,null,null,null,"EMPRGROTJ",null,null,null,null,null,null,null,null,null,null,null,null,null,null,null,null,null,null,null,null,null,null,null,null,0]
["Emperor",null,{"$f":"IFERROR(IF((VLOOKUP(B78,INDIRECT($J$76),2,FALSE)*D78)<1,1,ROUNDDOWN((VLOOKUP(B78,INDIRECT($J$76),2,FALSE)*D78),0)),\"\")","v":""},1,null,null,null,null,null,"GGROTJ",null,null,null,null,null,null,null,null,null,null,null,null,null,null,null,null,null,null,null,null,null,null,null,null,0]
["Emperor's Royal Guard",null,{"$f":"IFERROR(IF((VLOOKUP(B79,INDIRECT($J$77),2,FALSE)*D79)<1,1,ROUNDDOWN((VLOOKUP(B79,INDIRECT($J$77),2,FALSE)*D79),0)),\"\")","v":""},7,null,null,null,null,null,"GMROTJ",null,null,null,null,null,null,null,null,null,null,null,null,null,null,null,null,null,null,null,null,null,null,null,null,0]
["Gamorrean Guard",null,{"$f":"IFERROR(IF((VLOOKUP(B80,INDIRECT($J$78),2,FALSE)*D80)<1,1,ROUNDDOWN((VLOOKUP(B80,INDIRECT($J$78),2,FALSE)*D80),0)),\"\")","v":""},4,null,null,null,null,null,"HANTROTJ",null,null,null,null,null,null,null,null,null,null,null,null,null,null,null,null,null,null,null,null,null,null,null,null,0]
["General Madine",null,{"$f":"IFERROR(IF((VLOOKUP(B81,INDIRECT($J$79),2,FALSE)*D81)<1,1,ROUNDDOWN((VLOOKUP(B81,INDIRECT($J$79),2,FALSE)*D81),0)),\"\")","v":""},3,null,null,null,null,null,"KLAROTJ",null,null,null,null,null,null,null,null,null,null,null,null,null,null,null,null,null,null,null,null,null,null,null,null,0]
["Han Trenchcoat",null,{"$f":"IFERROR(IF((VLOOKUP(B82,INDIRECT($J$80),2,FALSE)*D82)<1,1,ROUNDDOWN((VLOOKUP(B82,INDIRECT($J$80),2,FALSE)*D82),0)),\"\")","v":""},2,null,null,null,null,null,"KLASKIROTJ",null,null,null,null,null,null,null,null,null,null,null,null,null,null,null,null,null,null,null,null,null,null,null,null,0]
["Klaatu",null,{"$f":"IFERROR(IF((VLOOKUP(B83,INDIRECT($J$81),2,FALSE)*D83)<1,1,ROUNDDOWN((VLOOKUP(B83,INDIRECT($J$81),2,FALSE)*D83),0)),\"\")","v":""},1,null,null,null,null,null,"LANSKROTJ",null,null,null,null,null,null,null,null,null,null,null,null,null,null,null,null,null,null,null,null,null,null,null,null,0]
["Klaatu Skiff",null,{"$f":"IFERROR(IF((VLOOKUP(B84,INDIRECT($J$82),2,FALSE)*D84)<1,1,ROUNDDOWN((VLOOKUP(B84,INDIRECT($J$82),2,FALSE)*D84),0)),\"\")","v":""},1,null,null,null,null,null,"LEIABROTJ",null,null,null,null,null,null,null,null,null,null,null,null,null,null,null,null,null,null,null,null,null,null,null,null,0]
["Lando Skiff",null,{"$f":"IFERROR(IF((VLOOKUP(B85,INDIRECT($J$83),2,FALSE)*D85)<1,1,ROUNDDOWN((VLOOKUP(B85,INDIRECT($J$83),2,FALSE)*D85),0)),\"\")","v":""},3,null,null,null,null,null,"LEIACROTJ",null,null,null,null,null,null,null,null,null,null,null,null,null,null,null,null,null,null,null,null,null,null,null,null,0]
["Leia Boushh",null,{"$f":"IFERROR(IF((VLOOKUP(B86,INDIRECT($J$84),2,FALSE)*D86)<1,1,ROUNDDOWN((VLOOKUP(B86,INDIRECT($J$84),2,FALSE)*D86),0)),\"\")","v":""},5,null,null,null,null,null,"LOGROTJ",null,null,null,null,null,null,null,null,null,null,null,null,null,null,null,null,null,null,null,null,null,null,null,null,0]
["Leia Combat",null,{"$f":"IFERROR(IF((VLOOKUP(B87,INDIRECT($J$85),2,FALSE)*D87)<1,1,ROUNDDOWN((VLOOKUP(B87,INDIRECT($J$85),2,FALSE)*D87),0)),\"\")","v":""},7,null,null,null,null,null,"LJBSROTJ",null,null,null,null,null,null,null,null,null,null,null,null,null,null,null,null,null,null,null,null,null,null,null,null,0]
["Logray",null,{"$f":"IFERROR(IF((VLOOKUP(B88,INDIRECT($J$86),2,FALSE)*D88)<1,1,ROUNDDOWN((VLOOKUP(B88,INDIRECT($J$86),2,FALSE)*D88),0)),\"\")","v":""},4,null,null,null,null,null,"LJGSROTJ",null,null,null,null,null,null,null,null,null,null,null,null,null,null,null,null,null,null,null,null,null,null,null,null,0]
["Luke Jedi Blue Saber",null,{"$f":"IFERROR(IF((VLOOKUP(B89,INDIRECT($J$87),2,FALSE)*D89)<1,1,ROUNDDOWN((VLOOKUP(B89,INDIRECT($J$87),2,FALSE)*D89),0)),\"\")","v":""},25,null,null,null,null,null,"NNROTJ",null,null,null,null,null,null,null,null,null,null,null,null,null,null,null,null,null,null,null,null,null,null,null,null,0]
["Luke Jedi Green Saber",null,{"$f":"IFERROR(IF((VLOOKUP(B90,INDIRECT($J$88),2,FALSE)*D90)<1,1,ROUNDDOWN((VLOOKUP(B90,INDIRECT($J$88),2,FALSE)*D90),0)),\"\")","v":""},15,null,null,null,null,null,"NIKROTJ",null,null,null,null,null,null,null,null,null,null,null,null,null,null,null,null,null,null,null,null,null,null,null,null,0]
["Nien Nunb",null,{"$f":"IFERROR(IF((VLOOKUP(B91,INDIRECT($J$89),2,FALSE)*D91)<1,1,ROUNDDOWN((VLOOKUP(B91,INDIRECT($J$89),2,FALSE)*D91),0)),\"\")","v":""},4,null,null,null,null,null,"PRUNROTJ",null,null,null,null,null,null,null,null,null,null,null,null,null,null,null,null,null,null,null,null,null,null,null,null,0]
["Nikto",null,{"$f":"IFERROR(IF((VLOOKUP(B92,INDIRECT($J$90),2,FALSE)*D92)<1,1,ROUNDDOWN((VLOOKUP(B92,INDIRECT($J$90),2,FALSE)*D92),0)),\"\")","v":""},5,null,null,null,null,null,"RANROTJ",null,null,null,null,null,null,null,null,null,null,null,null,null,null,null,null,null,null,null,null,null,null,null,null,0]
["Pruneface                 ",null,{"$f":"IFERROR(IF((VLOOKUP(B93,INDIRECT($J$91),2,FALSE)*D93)<1,1,ROUNDDOWN((VLOOKUP(B93,INDIRECT($J$91),2,FALSE)*D93),0)),\"\")","v":""},3,null,null,null,null,null,"RECOROTJ",null,null,null,null,null,null,null,null,null,null,null,null,null,null,null,null,null,null,null,null,null,null,null,null,0]
["Rancor Keeper",null,{"$f":"IFERROR(IF((VLOOKUP(B94,INDIRECT($J$92),2,FALSE)*D94)<1,1,ROUNDDOWN((VLOOKUP(B94,INDIRECT($J$92),2,FALSE)*D94),0)),\"\")","v":""},4,null,null,null,null,null,"REEYROTJ",null,null,null,null,null,null,null,null,null,null,null,null,null,null,null,null,null,null,null,null,null,null,null,null,0]
["Rebel Commando",null,{"$f":"IFERROR(IF((VLOOKUP(B95,INDIRECT($J$93),2,FALSE)*D95)<1,1,ROUNDDOWN((VLOOKUP(B95,INDIRECT($J$93),2,FALSE)*D95),0)),\"\")","v":""},1,null,null,null,null,null,"SQUIDROTJ",null,null,null,null,null,null,null,null,null,null,null,null,null,null,null,null,null,null,null,null,null,null,null,null,0]
["Ree Yees",null,{"$f":"IFERROR(IF((VLOOKUP(B96,INDIRECT($J$94),2,FALSE)*D96)<1,1,ROUNDDOWN((VLOOKUP(B96,INDIRECT($J$94),2,FALSE)*D96),0)),\"\")","v":""},3,null,null,null,null,null,"TEEBOROTJ",null,null,null,null,null,null,null,null,null,null,null,null,null,null,null,null,null,null,null,null,null,null,null,null,0]
["Squidhead",null,{"$f":"IFERROR(IF((VLOOKUP(B97,INDIRECT($J$95),2,FALSE)*D97)<1,1,ROUNDDOWN((VLOOKUP(B97,INDIRECT($J$95),2,FALSE)*D97),0)),\"\")","v":""},3,null,null,null,null,null,"WEEROTJ",null,null,null,null,null,null,null,null,null,null,null,null,null,null,null,null,null,null,null,null,null,null,null,null,0]
["Teebo",null,{"$f":"IFERROR(IF((VLOOKUP(B98,INDIRECT($J$96),2,FALSE)*D98)<1,1,ROUNDDOWN((VLOOKUP(B98,INDIRECT($J$96),2,FALSE)*D98),0)),\"\")","v":""},5,null,null,null,null,null,"WICKROTJ",null,null,null,null,null,null,null,null,null,null,null,null,null,null,null,null,null,null,null,null,null,null,null,null,0]
["Weequay",null,{"$f":"IFERROR(IF((VLOOKUP(B99,INDIRECT($J$97),2,FALSE)*D99)<1,1,ROUNDDOWN((VLOOKUP(B99,INDIRECT($J$97),2,FALSE)*D99),0)),\"\")","v":""},2,null,null,null,null,null,null,null,null,null,null,null,null,null,null,null,null,null,null,null,null,null,null,null,null,null,null,null,null,null,null,0]
["Wicket",null,{"$f":"IFERROR(IF((VLOOKUP(B100,INDIRECT($J$98),2,FALSE)*D100)<1,1,ROUNDDOWN((VLOOKUP(B100,INDIRECT($J$98),2,FALSE)*D100),0)),\"\")","v":""},8,null,null,null,null,null,null,null,null,null,null,null,null,null,null,null,null,null,null,null,null,null,null,null,null,null,null,null,null,null,null,0]
[null,null,null,null,null,null,null,null,null,null,null,null,null,null,null,null,null,null,null,null,null,null,null,null,null,null,null,null,null,null,null,null,null,null,0]
[null,null,null,null,null,null,null,null,null,null,null,null,null,null,null,null,null,null,null,null,null,null,null,null,null,null,null,null,null,null,null,null,null,null,0]
["Power of the Force",null,null,"C-9+ (AFA 85)",null,null,null,null,null,"AMAPOTF",null,null,null,null,null,null,null,null,null,null,null,null,null,null,null,null,null,null,null,null,null,null,null,null,0]
[null,null,null,null,null,null,null,null,null,"ANAPOTF",null,null,null,null,null,null,null,null,null,null,null,null,null,null,null,null,null,null,null,null,null,null,null,null,0]
["Amanaman",null,{"$f":"IFERROR(IF((VLOOKUP(B105,INDIRECT($J$103),2,FALSE)*D105)<1,1,ROUNDDOWN((VLOOKUP(B105,INDIRECT($J$103),2,FALSE)*D105),0)),\"\")","v":""},60,null,null,null,null,null,"AWIPOTF",null,null,null,null,null,null,null,null,null,null,null,null,null,null,null,null,null,null,null,null,null,null,null,null,0]
["Anakin",null,{"$f":"IFERROR(IF((VLOOKUP(B106,INDIRECT($J$104),2,FALSE)*D106)<1,1,ROUNDDOWN((VLOOKUP(B106,INDIRECT($J$104),2,FALSE)*D106),0)),\"\")","v":""},12,null,null,null,null,null,"BARPOTF",null,null,null,null,null,null,null,null,null,null,null,null,null,null,null,null,null,null,null,null,null,null,null,null,0]
["A-Wing Pilot",null,{"$f":"IFERROR(IF((VLOOKUP(B107,INDIRECT($J$105),2,FALSE)*D107)<1,1,ROUNDDOWN((VLOOKUP(B107,INDIRECT($J$105),2,FALSE)*D107),0)),\"\")","v":""},40,null,null,null,null,null,"EVPOTF",null,null,null,null,null,null,null,null,null,null,null,null,null,null,null,null,null,null,null,null,null,null,null,null,0]
["Barada",null,{"$f":"IFERROR(IF((VLOOKUP(B108,INDIRECT($J$106),2,FALSE)*D108)<1,1,ROUNDDOWN((VLOOKUP(B108,INDIRECT($J$106),2,FALSE)*D108),0)),\"\")","v":""},30,null,null,null,null,null,"HANCPOTF",null,null,null,null,null,null,null,null,null,null,null,null,null,null,null,null,null,null,null,null,null,null,null,null,0]
["EV-9D9                    ",null,{"$f":"IFERROR(IF((VLOOKUP(B109,INDIRECT(J107),2,FALSE)*D109)<1,1,ROUNDDOWN((VLOOKUP(B109,INDIRECT(J107),2,FALSE)*D109),0)),\"\")","v":""},50,null,null,null,null,null,"IMPDIGPOTF",null,null,null,null,null,null,null,null,null,null,null,null,null,null,null,null,null,null,null,null,null,null,null,null,0]
["Han Carbonite",null,{"$f":"IFERROR(IF((VLOOKUP(B110,INDIRECT($J$108),2,FALSE)*D110)<1,1,ROUNDDOWN((VLOOKUP(B110,INDIRECT($J$108),2,FALSE)*D110),0)),\"\")","v":""},60,null,null,null,null,null,"IMPGUNPOTF",null,null,null,null,null,null,null,null,null,null,null,null,null,null,null,null,null,null,null,null,null,null,null,null,0]
["Imperial Dignitary",null,{"$f":"IFERROR(IF((VLOOKUP(B111,INDIRECT($J$109),2,FALSE)*D111)<1,1,ROUNDDOWN((VLOOKUP(B111,INDIRECT($J$109),2,FALSE)*D111),0)),\"\")","v":""},25,null,null,null,null,null,"LANGENPOTF",null,null,null,null,null,null,null,null,null,null,null,null,null,null,null,null,null,null,null,null,null,null,null,null,0]
["Imperial Gunner",null,{"$f":"IFERROR(IF((VLOOKUP(B112,INDIRECT($J$110),2,FALSE)*D112)<1,1,ROUNDDOWN((VLOOKUP(B112,INDIRECT($J$110),2,FALSE)*D112),0)),\"\")","v":""},40,null,null,null,null,null,"LBPPOTF",null,null,null,null,null,null,null,null,null,null,null,null,null,null,null,null,null,null,null,null,null,null,null,null,0]
["Lando General",null,{"$f":"IFERROR(IF((VLOOKUP(B113,INDIRECT($J$111),2,FALSE)*D113)<1,1,ROUNDDOWN((VLOOKUP(B113,INDIRECT($J$111),2,FALSE)*D113),0)),\"\")","v":""},35,null,null,null,null,null,"LSTPOTF",null,null,null,null,null,null,null,null,null,null,null,null,null,null,null,null,null,null,null,null,null,null,null,null,0]
["Luke Battle Poncho",null,{"$f":"IFERROR(IF((VLOOKUP(B114,INDIRECT($J$112),2,FALSE)*D114)<1,1,ROUNDDOWN((VLOOKUP(B114,INDIRECT($J$112),2,FALSE)*D114),0)),\"\")","v":""},35,null,null,null,null,null,"LUMPOTF",null,null,null,null,null,null,null,null,null,null,null,null,null,null,null,null,null,null,null,null,null,null,null,null,0]
["Luke Stormtrooper",null,{"$f":"IFERROR(IF((VLOOKUP(B115,INDIRECT($J$113),2,FALSE)*D115)<1,1,ROUNDDOWN((VLOOKUP(B115,INDIRECT($J$113),2,FALSE)*D115),0)),\"\")","v":""},150,null,null,null,null,null,"PAPPOTF",null,null,null,null,null,null,null,null,null,null,null,null,null,null,null,null,null,null,null,null,null,null,null,null,0]
["Lumat",null,{"$f":"IFERROR(IF((VLOOKUP(B116,INDIRECT($J$114),2,FALSE)*D116)<1,1,ROUNDDOWN((VLOOKUP(B116,INDIRECT($J$114),2,FALSE)*D116),0)),\"\")","v":""},20,null,null,null,null,null,"RTWODTWOPOTF",null,null,null,null,null,null,null,null,null,null,null,null,null,null,null,null,null,null,null,null,null,null,null,null,0]
["Paploo",null,{"$f":"IFERROR(IF((VLOOKUP(B117,INDIRECT($J$115),2,FALSE)*D117)<1,1,ROUNDDOWN((VLOOKUP(B117,INDIRECT($J$115),2,FALSE)*D117),0)),\"\")","v":""},20,null,null,null,null,null,"ROMPOTF",null,null,null,null,null,null,null,null,null,null,null,null,null,null,null,null,null,null,null,null,null,null,null,null,0]
["R2-D2 Pop-up Saber",null,{"$f":"IFERROR(IF((VLOOKUP(B118,INDIRECT($J$116),2,FALSE)*D118)<1,1,ROUNDDOWN((VLOOKUP(B118,INDIRECT($J$116),2,FALSE)*D118),0)),\"\")","v":""},175,null,null,null,null,null,"WARPOTF",null,null,null,null,null,null,null,null,null,null,null,null,null,null,null,null,null,null,null,null,null,null,null,null,0]
["Romba",null,{"$f":"IFERROR(IF((VLOOKUP(B119,INDIRECT($J$117),2,FALSE)*D119)<1,1,ROUNDDOWN((VLOOKUP(B119,INDIRECT($J$117),2,FALSE)*D119),0)),\"\")","v":""},20,null,null,null,null,null,"YAKPOTF",null,null,null,null,null,null,null,null,null,null,null,null,null,null,null,null,null,null,null,null,null,null,null,null,0]
["Warok",null,{"$f":"IFERROR(IF((VLOOKUP(B120,INDIRECT($J$118),2,FALSE)*D120)<1,1,ROUNDDOWN((VLOOKUP(B120,INDIRECT($J$118),2,FALSE)*D120),0)),\"\")","v":""},35,null,null,null,null,null,null,null,null,null,null,null,null,null,null,null,null,null,null,null,null,null,null,null,null,null,null,null,null,null,null,0]
["Yak Face",null,{"$f":"IFERROR(IF((VLOOKUP(B121,INDIRECT($J$119),2,FALSE)*D121)<1,1,ROUNDDOWN((VLOOKUP(B121,INDIRECT($J$119),2,FALSE)*D121),0)),\"\")","v":""},225,null,null,null,null,null,null,null,null,null,null,null,null,null,null,null,null,null,null,null,null,null,null,null,null,null,null,null,null,null,null,0]
[null,null,null,null,null,null,null,null,null,null,null,null,null,null,null,null,null,null,null,null,null,null,null,null,null,null,null,null,null,null,null,null,null,null,0]
[null,null,null,null,null,null,null,null,null,null,null,null,null,null,null,null,null,null,null,null,null,null,null,null,null,null,null,null,null,null,null,null,null,null,0]
["Rare Figures",null,null,"C-9+ (AFA 85)",null,null,null,null,null,"RAREBEN",null,null,null,null,null,null,null,null,null,null,null,null,null,null,null,null,null,null,null,null,null,null,null,null,0]
[null,null,null,null,null,null,null,null,null,"RAREBLUSNAG",null,null,null,null,null,null,null,null,null,null,null,null,null,null,null,null,null,null,null,null,null,null,null,null,0]
["Ben Kenobi (Double Telescoping Saber) AFA 85",null,{"$f":"IFERROR(IF((VLOOKUP(B126,INDIRECT($J$124),2,FALSE)*D126)<1,1,ROUNDDOWN((VLOOKUP(B126,INDIRECT($J$124),2,FALSE)*D126),0)),\"\")","v":""},8000,null,null,null,null,null,"RAREBOBASEAL",null,null,null,null,null,null,null,null,null,null,null,null,null,null,null,null,null,null,null,null,null,null,null,null,0]
["Blue Snaggletooth AFA 85",null,{"$f":"IFERROR(IF((VLOOKUP(B127,INDIRECT($J$125),2,FALSE)*D127)<1,1,ROUNDDOWN((VLOOKUP(B127,INDIRECT($J$125),2,FALSE)*D127),0)),\"\")","v":""},300,null,null,null,null,null,"RAREBOBATRI",null,null,null,null,null,null,null,null,null,null,null,null,null,null,null,null,null,null,null,null,null,null,null,null,0]
["Boba Fett (Sealed in Kenner Mailer Box)",null,{"$f":"IFERROR(IF((VLOOKUP(B128,INDIRECT($J$126),2,FALSE)*D128)<1,1,ROUNDDOWN((VLOOKUP(B128,INDIRECT($J$126),2,FALSE)*D128),0)),\"\")","v":""},250,null,null,null,null,null,"RARECHEW",null,null,null,null,null,null,null,null,null,null,null,null,null,null,null,null,null,null,null,null,null,null,null,null,0]
["Boba Fett (Tri-Logo paint below knee)",null,{"$f":"IFERROR(IF((VLOOKUP(B129,INDIRECT($J$127),2,FALSE)*D129)<1,1,ROUNDDOWN((VLOOKUP(B129,INDIRECT($J$127),2,FALSE)*D129),0)),\"\")","v":""},200,null,null,null,null,null,"RAREDVDTS",null,null,null,null,null,null,null,null,null,null,null,null,null,null,null,null,null,null,null,null,null,null,null,null,0]
["Chewbacca (green crossbow)",null,{"$f":"IFERROR(IF((VLOOKUP(B130,INDIRECT($J$128),2,FALSE)*D130)<1,1,ROUNDDOWN((VLOOKUP(B130,INDIRECT($J$128),2,FALSE)*D130),0)),\"\")","v":""},12,null,null,null,null,null,"RAREDSM",null,null,null,null,null,null,null,null,null,null,null,null,null,null,null,null,null,null,null,null,null,null,null,null,0]
["Darth Vader Double (Double Telescoping Saber) AFA 85",null,{"$f":"IFERROR(IF((VLOOKUP(B131,INDIRECT($J$129),2,FALSE)*D131)<1,1,ROUNDDOWN((VLOOKUP(B131,INDIRECT($J$129),2,FALSE)*D131),0)),\"\")","v":""},8000,null,null,null,null,null,"RARELSBH",null,null,null,null,null,null,null,null,null,null,null,null,null,null,null,null,null,null,null,null,null,null,null,null,0]
["Death Star Monster",null,{"$f":"IFERROR(IF((VLOOKUP(B132,INDIRECT($J$130),2,FALSE)*D132)<1,1,ROUNDDOWN((VLOOKUP(B132,INDIRECT($J$130),2,FALSE)*D132),0)),\"\")","v":""},10,null,null,null,null,null,"RARELSDTS",null,null,null,null,null,null,null,null,null,null,null,null,null,null,null,null,null,null,null,null,null,null,null,null,0]
["Luke Skywalker (brown hair)",null,{"$f":"IFERROR(IF((VLOOKUP(B133,INDIRECT($J$131),2,FALSE)*D133)<1,1,ROUNDDOWN((VLOOKUP(B133,INDIRECT($J$131),2,FALSE)*D133),0)),\"\")","v":""},150,null,null,null,null,null,"RARERTWO",null,null,null,null,null,null,null,null,null,null,null,null,null,null,null,null,null,null,null,null,null,null,null,null,0]
["Luke Skywalker (Double Telescoping Saber) AFA 85",null,{"$f":"IFERROR(IF((VLOOKUP(B134,INDIRECT($J$132),2,FALSE)*D134)<1,1,ROUNDDOWN((VLOOKUP(B134,INDIRECT($J$132),2,FALSE)*D134),0)),\"\")","v":""},900,null,null,null,null,null,"RARETRHC",null,null,null,null,null,null,null,null,null,null,null,null,null,null,null,null,null,null,null,null,null,null,null,null,0]
["R2-D2 (wind-up)",null,{"$f":"IFERROR(IF((VLOOKUP(B135,INDIRECT($J$133),2,FALSE)*D135)<1,1,ROUNDDOWN((VLOOKUP(B135,INDIRECT($J$133),2,FALSE)*D135),0)),\"\")","v":""},200,null,null,null,null,null,"RAREUBS",null,null,null,null,null,null,null,null,null,null,null,null,null,null,null,null,null,null,null,null,null,null,null,null,0]
["Tusken Raider (hollow cheeks)",null,{"$f":"IFERROR(IF((VLOOKUP(B136,INDIRECT($J$134),2,FALSE)*D136)<1,1,ROUNDDOWN((VLOOKUP(B136,INDIRECT($J$134),2,FALSE)*D136),0)),\"\")","v":""},175,null,null,null,null,null,"RAREUHM",null,null,null,null,null,null,null,null,null,null,null,null,null,null,null,null,null,null,null,null,null,null,null,null,0]
["Uzay Blue Stars AFA 85",null,{"$f":"IFERROR(IF((VLOOKUP(B137,INDIRECT($J$135),2,FALSE)*D137)<1,1,ROUNDDOWN((VLOOKUP(B137,INDIRECT($J$135),2,FALSE)*D137),0)),\"\")","v":""},3000,null,null,null,null,null,"RAREVCJ",null,null,null,null,null,null,null,null,null,null,null,null,null,null,null,null,null,null,null,null,null,null,null,null,0]
["Uzay Headman AFA 85",null,{"$f":"IFERROR(IF((VLOOKUP(B138,INDIRECT($J$136),2,FALSE)*D138)<1,1,ROUNDDOWN((VLOOKUP(B138,INDIRECT($J$136),2,FALSE)*D138),0)),\"\")","v":""},6000,null,null,null,null,null,"RAREVLIX",null,null,null,null,null,null,null,null,null,null,null,null,null,null,null,null,null,null,null,null,null,null,null,null,0]
["Vinyl Caped Jawa",null,{"$f":"IFERROR(IF((VLOOKUP(B139,INDIRECT($J$137),2,FALSE)*D139)<1,1,ROUNDDOWN((VLOOKUP(B139,INDIRECT($J$137),2,FALSE)*D139),0)),\"\")","v":""},1000,null,null,null,null,null,"RAREYODAG",null,null,null,null,null,null,null,null,null,null,null,null,null,null,null,null,null,null,null,null,null,null,null,null,0]
["Vlix AFA 85",null,{"$f":"IFERROR(IF((VLOOKUP(B140,INDIRECT($J$138),2,FALSE)*D140)<1,1,ROUNDDOWN((VLOOKUP(B140,INDIRECT($J$138),2,FALSE)*D140),0)),\"\")","v":""},5000,null,null,null,null,null,null,null,null,null,null,null,null,null,null,null,null,null,null,null,null,null,null,null,null,null,null,null,null,null,null,0]
["Yoda (green snake)",null,{"$f":"IFERROR(IF((VLOOKUP(B141,INDIRECT($J$139),2,FALSE)*D141)<1,1,ROUNDDOWN((VLOOKUP(B141,INDIRECT($J$139),2,FALSE)*D141),0)),\"\")","v":""},125,null,null,null,null,null,null,null,null,null,null,null,null,null,null,null,null,null,null,null,null,null,null,null,null,null,null,null,null,null,null,0]
[null,null,null,null,null,null,null,null,null,null,null,null,null,null,null,null,null,null,null,null,null,null,null,null,null,null,null,null,null,null,null,null,null,null,0]
[null,null,null,null,null,null,null,null,null,null,null,null,null,null,null,null,null,null,null,null,null,null,null,null,null,null,null,null,null,null,null,null,null,null,0]
["Droids",null,null,"C-9+ (AFA 85)",null,null,null,null,null,null,null,null,null,null,null,null,null,null,null,null,null,null,null,null,null,null,null,null,null,null,null,null,null,null,0]
[null,null,null,null,null,null,null,null,null,"DCTHREE",null,null,null,null,null,null,null,null,null,null,null,null,null,null,null,null,null,null,null,null,null,null,null,null,0]
[null,null,null,null,null,null,null,null,null,"DJT",null,null,null,null,null,null,null,null,null,null,null,null,null,null,null,null,null,null,null,null,null,null,null,null,0]
["C-3PO",null,{"$f":"IFERROR(IF((VLOOKUP(B147,INDIRECT($J$145),2,FALSE)*D147)<1,1,ROUNDDOWN((VLOOKUP(B147,INDIRECT($J$145),2,FALSE)*D147),0)),\"\")","v":""},175,null,null,null,null,null,"DJD",null,null,null,null,null,null,null,null,null,null,null,null,null,null,null,null,null,null,null,null,null,null,null,null,0]
["Jann Tosh",null,{"$f":"IFERROR(IF((VLOOKUP(B148,INDIRECT($J$146),2,FALSE)*D148)<1,1,ROUNDDOWN((VLOOKUP(B148,INDIRECT($J$146),2,FALSE)*D148),0)),\"\")","v":""},30,null,null,null,null,null,"DKM",null,null,null,null,null,null,null,null,null,null,null,null,null,null,null,null,null,null,null,null,null,null,null,null,0]
["Jord Dusat",null,{"$f":"IFERROR(IF((VLOOKUP(B149,INDIRECT($J$147),2,FALSE)*D149)<1,1,ROUNDDOWN((VLOOKUP(B149,INDIRECT($J$147),2,FALSE)*D149),0)),\"\")","v":""},25,null,null,null,null,null,"DKI",null,null,null,null,null,null,null,null,null,null,null,null,null,null,null,null,null,null,null,null,null,null,null,null,0]
["Kea Moll  ",null,{"$f":"IFERROR(IF((VLOOKUP(B150,INDIRECT($J$148),2,FALSE)*D150)<1,1,ROUNDDOWN((VLOOKUP(B150,INDIRECT($J$148),2,FALSE)*D150),0)),\"\")","v":""},25,null,null,null,null,null,"DRTWO",null,null,null,null,null,null,null,null,null,null,null,null,null,null,null,null,null,null,null,null,null,null,null,null,0]
["Kez-Iban  ",null,{"$f":"IFERROR(IF((VLOOKUP(B151,INDIRECT($J$149),2,FALSE)*D151)<1,1,ROUNDDOWN((VLOOKUP(B151,INDIRECT($J$149),2,FALSE)*D151),0)),\"\")","v":""},15,null,null,null,null,null,"DSF",null,null,null,null,null,null,null,null,null,null,null,null,null,null,null,null,null,null,null,null,null,null,null,null,0]
["R2-D2      ",null,{"$f":"IFERROR(IF((VLOOKUP(B152,INDIRECT($J$150),2,FALSE)*D152)<1,1,ROUNDDOWN((VLOOKUP(B152,INDIRECT($J$150),2,FALSE)*D152),0)),\"\")","v":""},175,null,null,null,null,null,"DTJ",null,null,null,null,null,null,null,null,null,null,null,null,null,null,null,null,null,null,null,null,null,null,null,null,0]
["Sise Fromm",null,{"$f":"IFERROR(IF((VLOOKUP(B153,INDIRECT($J$151),2,FALSE)*D153)<1,1,ROUNDDOWN((VLOOKUP(B153,INDIRECT($J$151),2,FALSE)*D153),0)),\"\")","v":""},200,null,null,null,null,null,"DTF",null,null,null,null,null,null,null,null,null,null,null,null,null,null,null,null,null,null,null,null,null,null,null,null,0]
["Thall Joben              ",null,{"$f":"IFERROR(IF((VLOOKUP(B154,INDIRECT($J$152),2,FALSE)*D154)<1,1,ROUNDDOWN((VLOOKUP(B154,INDIRECT($J$152),2,FALSE)*D154),0)),\"\")","v":""},15,null,null,null,null,null,"DUG",null,null,null,null,null,null,null,null,null,null,null,null,null,null,null,null,null,null,null,null,null,null,null,null,0]
["Tig Fromm",null,{"$f":"IFERROR(IF((VLOOKUP(B155,INDIRECT($J$153),2,FALSE)*D155)<1,1,ROUNDDOWN((VLOOKUP(B155,INDIRECT($J$153),2,FALSE)*D155),0)),\"\")","v":""},90,null,null,null,null,null,null,null,null,null,null,null,null,null,null,null,null,null,null,null,null,null,null,null,null,null,null,null,null,null,null,0]
["Uncle Gundy           ",null,{"$f":"IFERROR(IF((VLOOKUP(B156,INDIRECT($J$154),2,FALSE)*D156)<1,1,ROUNDDOWN((VLOOKUP(B156,INDIRECT($J$154),2,FALSE)*D156),0)),\"\")","v":""},15,null,null,null,null,null,null,null,null,null,null,null,null,null,null,null,null,null,null,null,null,null,null,null,null,null,null,null,null,null,null,0]
[null,null,null,null,null,null,null,null,null,null,null,null,null,null,null,null,null,null,null,null,null,null,null,null,null,null,null,null,null,null,null,null,null,null,0]
[null,null,null,null,null,null,null,null,null,null,null,null,null,null,null,null,null,null,null,null,null,null,null,null,null,null,null,null,null,null,null,null,null,null,0]
["Ewoks",null,null,"C-9+ (AFA 85)",null,null,null,null,null,"EWDS",null,null,null,null,null,null,null,null,null,null,null,null,null,null,null,null,null,null,null,null,null,null,null,null,0]
[null,null,null,null,null,null,null,null,null,"EWDUS",null,null,null,null,null,null,null,null,null,null,null,null,null,null,null,null,null,null,null,null,null,null,null,null,0]
["Dulok Scout             ",null,{"$f":"IFERROR(IF((VLOOKUP(B161,INDIRECT($J$159),2,FALSE)*D161)<1,1,ROUNDDOWN((VLOOKUP(B161,INDIRECT($J$159),2,FALSE)*D161),0)),\"\")","v":""},15,null,null,null,null,null,"EWKG",null,null,null,null,null,null,null,null,null,null,null,null,null,null,null,null,null,null,null,null,null,null,null,null,0]
["Dulok Shaman          ",null,{"$f":"IFERROR(IF((VLOOKUP(B162,INDIRECT($J$160),2,FALSE)*D162)<1,1,ROUNDDOWN((VLOOKUP(B162,INDIRECT($J$160),2,FALSE)*D162),0)),\"\")","v":""},15,null,null,null,null,null,"EWLOG",null,null,null,null,null,null,null,null,null,null,null,null,null,null,null,null,null,null,null,null,null,null,null,null,0]
["King Gorneesh         ",null,{"$f":"IFERROR(IF((VLOOKUP(B163,INDIRECT($J$161),2,FALSE)*D163)<1,1,ROUNDDOWN((VLOOKUP(B163,INDIRECT($J$161),2,FALSE)*D163),0)),\"\")","v":""},15,null,null,null,null,null,"EWULG",null,null,null,null,null,null,null,null,null,null,null,null,null,null,null,null,null,null,null,null,null,null,null,null,0]
["Logray      ",null,{"$f":"IFERROR(IF((VLOOKUP(B164,INDIRECT($J$162),2,FALSE)*D164)<1,1,ROUNDDOWN((VLOOKUP(B164,INDIRECT($J$162),2,FALSE)*D164),0)),\"\")","v":""},25,null,null,null,null,null,"EWWW",null,null,null,null,null,null,null,null,null,null,null,null,null,null,null,null,null,null,null,null,null,null,null,null,0]
["Urgah Lady Gorneesh                                            ",null,{"$f":"IFERROR(IF((VLOOKUP(B165,INDIRECT($J$163),2,FALSE)*D165)<1,1,ROUNDDOWN((VLOOKUP(B165,INDIRECT($J$163),2,FALSE)*D165),0)),\"\")","v":""},15,null,null,null,null,null,null,null,null,null,null,null,null,null,null,null,null,null,null,null,null,null,null,null,null,null,null,null,null,null,null,0]
["Wicket      ",null,{"$f":"IFERROR(IF((VLOOKUP(B166,INDIRECT($J$164),2,FALSE)*D166)<1,1,ROUNDDOWN((VLOOKUP(B166,INDIRECT($J$164),2,FALSE)*D166),0)),\"\")","v":""},30,null,null,null,null,null,null,null,null,null,null,null,null,null,null,null,null,null,null,null,null,null,null,null,null,null,null,null,null,null,null,0]
[]
[null,"TOTAL VALUE:",{"$f":"SUM(C9:C167)","v":0}]

{"sheet":"STARWARS","index":1,"n_rows":55,"n_cols":21,"rows_kept":55,"cut":false,"hidden":true,"merged":[[43,1,43,2],[43,4,43,5],[43,7,43,8],[43,10,43,11],[1,19,1,20],[15,16,15,17],[15,19,15,20],[29,1,29,2],[29,4,29,5],[29,7,29,8],[29,10,29,11],[29,13,29,14],[29,16,29,17],[29,19,29,20],[15,1,15,2],[15,4,15,5],[15,7,15,8],[15,10,15,11],[15,13,15,14],[1,16,1,17],[1,1,1,2],[1,4,1,5],[1,7,1,8],[1,10,1,11],[1,13,1,14]]}
[]
[null,"BEN KENOBI",null,null,"BOBA FETT",null,null,"C-3P0",null,null,"CHEWBACCA",null,null,"DARTH VADER",null,null,"DEATH SQUAD COMMANDER",null,null,"DEATH STAR DROID"]
[null,"Ratings","Percentages",null,"Ratings","Percentages",null,"Ratings","Percentages",null,"Ratings","Percentages",null,"Ratings","Percentages",null,"Ratings","Percentages",null,"Ratings","Percentages"]
[null,"C-9",1,null,"C-9",1,null,"C-9",1,null,"C-9",1,null,"C-9",1,null,"C-9",1,null,"C-9",1]
[null,"C-8",0.6,null,"C-8",0.9,null,"C-8",0.4,null,"C-8",0.5,null,"C-8",0.8,null,"C-8",0.8,null,"C-8",0.3]
[null,"C-7",0.4,null,"C-7",0.5,null,"C-7",0.1,null,"C-7",0.3,null,"C-7",0.1,null,"C-7",0.3,null,"C-7",0.1]
[null,"C-6",0.25,null,"C-6",0.25,null,"C-6",0.01,null,"C-6",0.2,null,"C-6",0.01,null,"C-6",0.3,null,"C-6",0.01]
[null,"C-5",0.1,null,"C-5",0.01,null,"C-5",0.01,null,"C-5",0.1,null,"C-5",0.01,null,"C-5",0.01,null,"C-5",0.01]
[null,"C-4",0.01,null,"C-4",0.01,null,"C-4",0.01,null,"C-4",0.01,null,"C-4",0.01,null,"C-4",0.01,null,"C-4",0.01]
[null,"C-3",0.01,null,"C-3",0.01,null,"C-3",0.01,null,"C-3",0.01,null,"C-3",0.01,null,"C-3",0.01,null,"C-3",0.01]
[null,"C-2",0.01,null,"C-2",0.01,null,"C-2",0.01,null,"C-2",0.01,null,"C-2",0.01,null,"C-2",0.01,null,"C-2",0.01]
[null,"C-1",0.01,null,"C-1",0.01,null,"C-1",0.01,null,"C-1",0.01,null,"C-1",0.01,null,"C-1",0.01,null,"C-1",0.01]
[null,"Incomplete",0.01,null,"Incomplete",0.01,null,"Incomplete",0.01,null,"Incomplete",0.01,null,"Incomplete",0.01,null,"Incomplete",0.01,null,"Incomplete",0.01]
[]
[]
[null,"GREEDO",null,null,"HAMMERHEAD",null,null,"HAN SOLO (LARGE HEAD)",null,null,"HAN SOLO (SMALL HEAD)",null,null,"JAWA",null,null,"LEIA",null,null,"LUKE"]
[null,"Ratings","Percentages",null,"Ratings","Percentages",null,"Ratings","Percentages",null,"Ratings","Percentages",null,"Ratings","Percentages",null,"Ratings","Percentages",null,"Ratings","Percentages"]
[null,"C-9",1,null,"C-9",1,null,"C-9",1,null,"C-9",1,null,"C-9",1,null,"C-9",1,null,"C-9",1]
[null,"C-8",0.5,null,"C-8",0.55000000000000004,null,"C-8",0.6,null,"C-8",0.67500000000000004,null,"C-8",0.5,null,"C-8",0.75,null,"C-8",0.86]
[null,"C-7",0.3,null,"C-7",0.4,null,"C-7",0.15,null,"C-7",0.25,null,"C-7",0.2,null,"C-7",0.38,null,"C-7",0.35]
[null,"C-6",0.01,null,"C-6",0.01,null,"C-6",0.01,null,"C-6",0.01,null,"C-6",0.01,null,"C-6",0.08,null,"C-6",0.08]
[null,"C-5",0.01,null,"C-5",0.01,null,"C-5",0.01,null,"C-5",0.01,null,"C-5",0.01,null,"C-5",0.01,null,"C-5",0.01]
[null,"C-4",0.01,null,"C-4",0.01,null,"C-4",0.01,null,"C-4",0.01,null,"C-4",0.01,null,"C-4",0.01,null,"C-4",0.01]
[null,"C-3",0.01,null,"C-3",0.01,null,"C-3",0.01,null,"C-3",0.01,null,"C-3",0.01,null,"C-3",0.01,null,"C-3",0.01]
[null,"C-2",0.01,null,"C-2",0.01,null,"C-2",0.01,null,"C-2",0.01,null,"C-2",0.01,null,"C-2",0.01,null,"C-2",0.01]
[null,"C-1",0.01,null,"C-1",0.01,null,"C-1",0.01,null,"C-1",0.01,null,"C-1",0.01,null,"C-1",0.01,null,"C-1",0.01]
[null,"Incomplete",0.01,null,"Incomplete",0.01,null,"Incomplete",0.01,null,"Incomplete",0.01,null,"Incomplete",0.01,null,"Incomplete",0.01,null,"Incomplete",0.01]
[]
[]
[null,"LUKE X-WING",null,null,"POWER DROID",null,null,"R2-D2",null,null,"R5-D4",null,null,"SNAGGLETOOTH",null,null,"STORMTROOPER",null,null,"TUSKEN RAIDER"]
[null,"Ratings","Percentages",null,"Ratings","Percentages",null,"Ratings","Percentages",null,"Ratings","Percentages",null,"Ratings","Percentages",null,"Ratings","Percentages",null,"Ratings","Percentages"]
[null,"C-9",1,null,"C-9",1,null,"C-9",1,null,"C-9",1,null,"C-9",1,null,"C-9",1,null,"C-9",1]
[null,"C-8",0.6,null,"C-8",0.3,null,"C-8",0.4,null,"C-8",0.4,null,"C-8",0.3,null,"C-8",0.5,null,"C-8",0.5]
[null,"C-7",0.2,null,"C-7",0.01,null,"C-7",7.0000000000000007E-2,null,"C-7",0.01,null,"C-7",0.01,null,"C-7",0.2,null,"C-7",0.01]
[null,"C-6",0.01,null,"C-6",0.01,null,"C-6",0.01,null,"C-6",0.01,null,"C-6",0.01,null,"C-6",0.01,null,"C-6",0.01]
[null,"C-5",0.01,null,"C-5",0.01,null,"C-5",0.01,null,"C-5",0.01,null,"C-5",0.01,null,"C-5",0.01,null,"C-5",0.01]
[null,"C-4",0.01,null,"C-4",0.01,null,"C-4",0.01,null,"C-4",0.01,null,"C-4",0.01,null,"C-4",0.01,null,"C-4",0.01]
[null,"C-3",0.01,null,"C-3",0.01,null,"C-3",0.01,null,"C-3",0.01,null,"C-3",0.01,null,"C-3",0.01,null,"C-3",0.01]
[null,"C-2",0.01,null,"C-2",0.01,null,"C-2",0.01,null,"C-2",0.01,null,"C-2",0.01,null,"C-2",0.01,null,"C-2",0.01]
[null,"C-1",0.01,null,"C-1",0.01,null,"C-1",0.01,null,"C-1",0.01,null,"C-1",0.01,null,"C-1",0.01,null,"C-1",0.01]
[null,"Incomplete",0.01,null,"Incomplete",0.01,null,"Incomplete",0.01,null,"Incomplete",0.01,null,"Incomplete",0.01,null,"Incomplete",0.01,null,"Incomplete",0.01]
[]
[]
[null,"WALRUSMAN"]
[null,"Ratings","Percentages"]
[null,"C-9",1]
[null,"C-8",0.3]
[null,"C-7",0.1]
[null,"C-6",0.01]
[null,"C-5",0.01]
[null,"C-4",0.01]
[null,"C-3",0.01]
[null,"C-2",0.01]
[null,"C-1",0.01]
[null,"Incomplete",0.01]

{"sheet":"ESP","index":2,"n_rows":68,"n_cols":21,"rows_kept":68,"cut":false,"hidden":true,"merged":[[56,1,56,2],[56,4,56,5],[56,7,56,8],[56,10,56,11],[29,19,29,20],[43,1,43,2],[43,4,43,5],[43,7,43,8],[43,10,43,11],[43,13,43,14],[43,16,43,17],[43,19,43,20],[29,1,29,2],[29,4,29,5],[29,7,29,8],[29,10,29,11],[29,13,29,14],[29,16,29,17],[1,19,1,20],[15,1,15,2],[15,4,15,5],[15,7,15,8],[15,10,15,11],[15,13,15,14],[15,16,15,17],[15,19,15,20],[1,1,1,2],[1,4,1,5],[1,7,1,8],[1,10,1,11],[1,13,1,14],[1,16,1,17]]}
[]
[null,"2-1B",null,null,"4-LOM",null,null,"AT-AT COMMANDER",null,null,"AT-AT DRIVER",null,null,"BESPIN GUARD BLACK",null,null,"BESPIN GUARD WHITE",null,null,"BOSSK"]
[null,"Ratings","Percentages",null,"Ratings","Percentages",null,"Ratings","Percentages",null,"Ratings","Percentages",null,"Ratings","Percentages",null,"Ratings","Percentages",null,"Ratings","Percentages"]
[null,"C-9",1,null,"C-9",1,null,"C-9",1,null,"C-9",1,null,"C-9",1,null,"C-9",1,null,"C-9",1]
[null,"C-8",0.5,null,"C-8",0.7,null,"C-8",0.5,null,"C-8",0.5,null,"C-8",0.7,null,"C-8",0.7,null,"C-8",0.5]
[null,"C-7",0.35,null,"C-7",0.4,null,"C-7",0.35,null,"C-7",0.35,null,"C-7",0.45,null,"C-7",0.45,null,"C-7",0.35]
[null,"C-6",0.2,null,"C-6",0.2,null,"C-6",0.2,null,"C-6",0.2,null,"C-6",0.2,null,"C-6",0.2,null,"C-6",0.2]
[null,"C-5",0.01,null,"C-5",0.01,null,"C-5",0.01,null,"C-5",0.01,null,"C-5",0.01,null,"C-5",0.01,null,"C-5",0.01]
[null,"C-4",0.01,null,"C-4",0.01,null,"C-4",0.01,null,"C-4",0.01,null,"C-4",0.01,null,"C-4",0.01,null,"C-4",0.01]
[null,"C-3",0.01,null,"C-3",0.01,null,"C-3",0.01,null,"C-3",0.01,null,"C-3",0.01,null,"C-3",0.01,null,"C-3",0.01]
[null,"C-2",0.01,null,"C-2",0.01,null,"C-2",0.01,null,"C-2",0.01,null,"C-2",0.01,null,"C-2",0.01,null,"C-2",0.01]
[null,"C-1",0.01,null,"C-1",0.01,null,"C-1",0.01,null,"C-1",0.01,null,"C-1",0.01,null,"C-1",0.01,null,"C-1",0.01]
[null,"Incomplete",0.1,null,"Incomplete",0.1,null,"Incomplete",0.1,null,"Incomplete",0.1,null,"Incomplete",0.1,null,"Incomplete",0.1,null,"Incomplete",0.2]
[]
[]
[null,"C-3P0",null,null,"CLOUD CAR PILOT",null,null,"DENGAR",null,null,"FX-7",null,null,"HAN BESPIN",null,null,"HAN HOTH",null,null,"HOTH STORMTROOPER"]
[null,"Ratings","Percentages",null,"Ratings","Percentages",null,"Ratings","Percentages",null,"Ratings","Percentages",null,"Ratings","Percentages",null,"Ratings","Percentages",null,"Ratings","Percentages"]
[null,"C-9",1,null,"C-9",1,null,"C-9",1,null,"C-9",1,null,"C-9",1,null,"C-9",1,null,"C-9",1]
[null,"C-8",0.6,null,"C-8",0.7,null,"C-8",0.7,null,"C-8",0.7,null,"C-8",0.7,null,"C-8",0.5,null,"C-8",0.7]
[null,"C-7",0.4,null,"C-7",0.4,null,"C-7",0.45,null,"C-7",0.45,null,"C-7",0.4,null,"C-7",0.3,null,"C-7",0.4]
[null,"C-6",0.1,null,"C-6",0.2,null,"C-6",0.2,null,"C-6",0.2,null,"C-6",0.2,null,"C-6",0.2,null,"C-6",0.2]
[null,"C-5",0.01,null,"C-5",0.01,null,"C-5",0.01,null,"C-5",0.01,null,"C-5",0.01,null,"C-5",0.01,null,"C-5",0.01]
[null,"C-4",0.01,null,"C-4",0.01,null,"C-4",0.01,null,"C-4",0.01,null,"C-4",0.01,null,"C-4",0.01,null,"C-4",0.01]
[null,"C-3",0.01,null,"C-3",0.01,null,"C-3",0.01,null,"C-3",0.01,null,"C-3",0.01,null,"C-3",0.01,null,"C-3",0.01]
[null,"C-2",0.01,null,"C-2",0.01,null,"C-2",0.01,null,"C-2",0.01,null,"C-2",0.01,null,"C-2",0.01,null,"C-2",0.01]
[null,"C-1",0.01,null,"C-1",0.01,null,"C-1",0.01,null,"C-1",0.01,null,"C-1",0.01,null,"C-1",0.01,null,"C-1",0.01]
[null,"Incomplete",0.1,null,"Incomplete",0.1,null,"Incomplete",0.1,null,"Incomplete",0.1,null,"Incomplete",0.2,null,"Incomplete",0.1,null,"Incomplete",0.2]
[]
[]
[null,"IG-88",null,null,"IMPERIAL COMMANDER",null,null,"LANDO",null,null,"LEIA BESPIN (CREWNECK)",null,null,"LEIA BESPIN (TURTLENECK)",null,null,"LEIA HOTH",null,null,"LOBOT"]
[null,"Ratings","Percentages",null,"Ratings","Percentages",null,"Ratings","Percentages",null,"Ratings","Percentages",null,"Ratings","Percentages",null,"Ratings","Percentages",null,"Ratings","Percentages"]
[null,"C-9",1,null,"C-9",1,null,"C-9",1,null,"C-9",1,null,"C-9",1,null,"C-9",1,null,"C-9",1]
[null,"C-8",0.6,null,"C-8",0.7,null,"C-8",0.7,null,"C-8",0.8,null,"C-8",0.7,null,"C-8",0.7,null,"C-8",0.7]
[null,"C-7",0.3,null,"C-7",0.35,null,"C-7",0.35,null,"C-7",0.6,null,"C-7",0.5,null,"C-7",0.4,null,"C-7",0.2]
[null,"C-6",0.2,null,"C-6",0.2,null,"C-6",0.2,null,"C-6",0.3,null,"C-6",0.3,null,"C-6",0.2,null,"C-6",0.2]
[null,"C-5",0.01,null,"C-5",0.01,null,"C-5",0.01,null,"C-5",0.01,null,"C-5",0.1,null,"C-5",0.01,null,"C-5",0.01]
[null,"C-4",0.01,null,"C-4",0.01,null,"C-4",0.01,null,"C-4",0.01,null,"C-4",0.01,null,"C-4",0.01,null,"C-4",0.01]
[null,"C-3",0.01,null,"C-3",0.01,null,"C-3",0.01,null,"C-3",0.01,null,"C-3",0.01,null,"C-3",0.01,null,"C-3",0.01]
[null,"C-2",0.01,null,"C-2",0.01,null,"C-2",0.01,null,"C-2",0.01,null,"C-2",0.01,null,"C-2",0.01,null,"C-2",0.01]
[null,"C-1",0.01,null,"C-1",0.01,null,"C-1",0.01,null,"C-1",0.01,null,"C-1",0.01,null,"C-1",0.01,null,"C-1",0.01]
[null,"Incomplete",0.1,null,"Incomplete",0.1,null,"Incomplete",0.1,null,"Incomplete",0.2,null,"Incomplete",0.2,null,"Incomplete",0.1,null,"Incomplete",0.1]
[]
[]
[null,"LUKE BESPIN",null,null,"LUKE HOTH",null,null,"R2-D2 (SENSORSCOPE)",null,null,"REBEL COMMANDER",null,null,"REBEL SOLIDER",null,null,"TIE PILOT",null,null,"UGNAUGHT (BLUE SMOCK)"]
[null,"Ratings","Percentages",null,"Ratings","Percentages",null,"Ratings","Percentages",null,"Ratings","Percentages",null,"Ratings","Percentages",null,"Ratings","Percentages",null,"Ratings","Percentages"]
[null,"C-9",1,null,"C-9",1,null,"C-9",1,null,"C-9",1,null,"C-9",1,null,"C-9",1,null,"C-9",1]
[null,"C-8",0.55000000000000004,null,"C-8",0.55000000000000004,null,"C-8",0.7,null,"C-8",0.7,null,"C-8",0.7,null,"C-8",0.7,null,"C-8",0.7]
[null,"C-7",0.4,null,"C-7",0.4,null,"C-7",0.45,null,"C-7",0.2,null,"C-7",0.2,null,"C-7",0.35,null,"C-7",0.45]
[null,"C-6",0.3,null,"C-6",0.3,null,"C-6",0.2,null,"C-6",0.2,null,"C-6",0.2,null,"C-6",0.2,null,"C-6",0.2]
[null,"C-5",0.1,null,"C-5",0.1,null,"C-5",0.01,null,"C-5",0.01,null,"C-5",0.01,null,"C-5",0.01,null,"C-5",0.01]
[null,"C-4",0.01,null,"C-4",0.01,null,"C-4",0.01,null,"C-4",0.01,null,"C-4",0.01,null,"C-4",0.01,null,"C-4",0.01]
[null,"C-3",0.01,null,"C-3",0.01,null,"C-3",0.01,null,"C-3",0.01,null,"C-3",0.01,null,"C-3",0.01,null,"C-3",0.01]
[null,"C-2",0.01,null,"C-2",0.01,null,"C-2",0.01,null,"C-2",0.01,null,"C-2",0.01,null,"C-2",0.01,null,"C-2",0.01]
[null,"C-1",0.01,null,"C-1",0.01,null,"C-1",0.01,null,"C-1",0.01,null,"C-1",0.01,null,"C-1",0.01,null,"C-1",0.01]
[null,"Incomplete",0.1,null,"Incomplete",0.1,null,"Incomplete",0.1,null,"Incomplete",0.1,null,"Incomplete",0.1,null,"Incomplete",0.1,null,"Incomplete",0.1]
[]
[null,"UGNAUGHT (PURPLE SMOK)",null,null,"YODA BROWN SNAKE",null,null,"YOUDA ORANGE SNAKE",null,null,"ZUCKUSS"]
[null,"Ratings","Percentages",null,"Ratings","Percentages",null,"Ratings","Percentages",null,"Ratings","Percentages"]
[null,"C-9",1,null,"C-9",1,null,"C-9",1,null,"C-9",1]
[null,"C-8",0.7,null,"C-8",0.8,null,"C-8",0.7,null,"C-8",0.7]
[null,"C-7",0.45,null,"C-7",0.6,null,"C-7",0.5,null,"C-7",0.45]
[null,"C-6",0.2,null,"C-6",0.3,null,"C-6",0.3,null,"C-6",0.2]
[null,"C-5",0.01,null,"C-5",0.1,null,"C-5",0.01,null,"C-5",0.01]
[null,"C-4",0.01,null,"C-4",0.01,null,"C-4",0.01,null,"C-4",0.01]
[null,"C-3",0.01,null,"C-3",0.01,null,"C-3",0.01,null,"C-3",0.01]
[null,"C-2",0.01,null,"C-2",0.01,null,"C-2",0.01,null,"C-2",0.01]
[null,"C-1",0.01,null,"C-1",0.01,null,"C-1",0.01,null,"C-1",0.01]
[null,"Incomplete",0.1,null,"Incomplete",0.2,null,"Incomplete",0.1,null,"Incomplete",0.1]

{"sheet":"ROTJ","index":3,"n_rows":68,"n_cols":21,"rows_kept":68,"cut":false,"hidden":true,"merged":[[56,1,56,2],[56,4,56,5],[56,7,56,8],[56,10,56,11],[29,19,29,20],[43,1,43,2],[43,4,43,5],[43,7,43,8],[43,10,43,11],[43,13,43,14],[43,16,43,17],[43,19,43,20],[29,1,29,2],[29,4,29,5],[29,7,29,8],[29,10,29,11],[29,13,29,14],[29,16,29,17],[1,19,1,20],[15,1,15,2],[15,4,15,5],[15,7,15,8],[15,10,15,11],[15,13,15,14],[15,16,15,17],[15,19,15,20],[1,1,1,2],[1,4,1,5],[1,7,1,8],[1,10,1,11],[1,13,1,14],[1,16,1,17]]}
[]
[null,"8D8",null,null,"ADMIRAL ACKBAR",null,null,"AT-ST DRIVER",null,null,"BIB FORTUNA",null,null,"BIKER SCOUT",null,null,"B-WING PILOT",null,null,"CHIEF CHIRPA"]
[null,"Ratings","Percentages",null,"Ratings","Percentages",null,"Ratings","Percentages",null,"Ratings","Percentages",null,"Ratings","Percentages",null,"Ratings","Percentages",null,"Ratings","Percentages"]
[null,"C-9",1,null,"C-9",1,null,"C-9",1,null,"C-9",1,null,"C-9",1,null,"C-9",1,null,"C-9",1]
[null,"C-8",0.5,null,"C-8",0.5,null,"C-8",0.4,null,"C-8",0.7,null,"C-8",0.5,null,"C-8",0.5,null,"C-8",0.7]
[null,"C-7",0.01,null,"C-7",0.01,null,"C-7",0.01,null,"C-7",0.01,null,"C-7",0.3,null,"C-7",0.3,null,"C-7",0.3]
[null,"C-6",0.01,null,"C-6",0.01,null,"C-6",0.01,null,"C-6",0.01,null,"C-6",0.2,null,"C-6",0.2,null,"C-6",0.2]
[null,"C-5",0.01,null,"C-5",0.01,null,"C-5",0.01,null,"C-5",0.01,null,"C-5",0.01,null,"C-5",0.01,null,"C-5",0.01]
[null,"C-4",0.01,null,"C-4",0.01,null,"C-4",0.01,null,"C-4",0.01,null,"C-4",0.01,null,"C-4",0.01,null,"C-4",0.01]
[null,"C-3",0.01,null,"C-3",0.01,null,"C-3",0.01,null,"C-3",0.01,null,"C-3",0.01,null,"C-3",0.01,null,"C-3",0.01]
[null,"C-2",0.01,null,"C-2",0.01,null,"C-2",0.01,null,"C-2",0.01,null,"C-2",0.01,null,"C-2",0.01,null,"C-2",0.01]
[null,"C-1",0.01,null,"C-1",0.01,null,"C-1",0.01,null,"C-1",0.01,null,"C-1",0.01,null,"C-1",0.01,null,"C-1",0.01]
[null,"Incomplete",0.01,null,"Incomplete",0.01,null,"Incomplete",0.01,null,"Incomplete",0.01,null,"Incomplete",0.01,null,"Incomplete",0.01,null,"Incomplete",0.01]
[]
[]
[null,"EMPEROR",null,null,"EMPEROR'S ROYAL GUARD",null,null,"GAMMOREAN GUARD",null,null,"GENERAL MADINE",null,null,"HAN TRENCHCOAT",null,"Increase","KLAATU",null,null,"KLAATU SKIFF"]
[null,"Ratings","Percentages",null,"Ratings","Percentages",null,"Ratings","Percentages",null,"Ratings","Percentages",null,"Ratings","Percentages",null,"Ratings","Percentages",null,"Ratings","Percentages"]
[null,"C-9",1,null,"C-9",1,null,"C-9",1,null,"C-9",1,null,"C-9",1,null,"C-9",1,null,"C-9",1]
[null,"C-8",0.5,null,"C-8",0.6,null,"C-8",0.75,null,"C-8",0.75,null,"C-8",0.5,null,"C-8",0.5,null,"C-8",0.5]
[null,"C-7",0.3,null,"C-7",0.4,null,"C-7",0.5,null,"C-7",0.3,null,"C-7",0.3,null,"C-7",0.3,null,"C-7",0.3]
[null,"C-6",0.2,null,"C-6",0.2,null,"C-6",0.2,null,"C-6",0.2,null,"C-6",0.2,null,"C-6",0.2,null,"C-6",0.2]
[null,"C-5",0.01,null,"C-5",0.01,null,"C-5",0.01,null,"C-5",0.01,null,"C-5",0.01,null,"C-5",0.01,null,"C-5",0.01]
[null,"C-4",0.01,null,"C-4",0.01,null,"C-4",0.01,null,"C-4",0.01,null,"C-4",0.01,null,"C-4",0.01,null,"C-4",0.01]
[null,"C-3",0.01,null,"C-3",0.01,null,"C-3",0.01,null,"C-3",0.01,null,"C-3",0.01,null,"C-3",0.01,null,"C-3",0.01]
[null,"C-2",0.01,null,"C-2",0.01,null,"C-2",0.01,null,"C-2",0.01,null,"C-2",0.01,null,"C-2",0.01,null,"C-2",0.01]
[null,"C-1",0.01,null,"C-1",0.01,null,"C-1",0.01,null,"C-1",0.01,null,"C-1",0.01,null,"C-1",0.01,null,"C-1",0.01]
[null,"Incomplete",0.01,null,"Incomplete",0.01,null,"Incomplete",0.01,null,"Incomplete",0.01,null,"Incomplete",0.01,null,"Incomplete",0.01,null,"Incomplete",0.01]
[]
[]
[null,"LANDO SKIFF",null,null,"LEIA BOUSHH",null,null,"LEIA COMBAT",null,null,"LOGRAY",null,null,"LUKE JEDI BLUE SABER",null,null,"LUKE JEDI GREEN SABER",null,null,"NIEN NUNB"]
[null,"Ratings","Percentages",null,"Ratings","Percentages",null,"Ratings","Percentages",null,"Ratings","Percentages",null,"Ratings","Percentages",null,"Ratings","Percentages",null,"Ratings","Percentages"]
[null,"C-9",1,null,"C-9",1,null,"C-9",1,null,"C-9",1,null,"C-9",1,null,"C-9",1,null,"C-9",1]
[null,"C-8",0.75,null,"C-8",0.8,null,"C-8",0.8,null,"C-8",0.75,null,"C-8",0.65,null,"C-8",0.8,null,"C-8",0.5]
[null,"C-7",0.3,null,"C-7",0.4,null,"C-7",0.6,null,"C-7",0.5,null,"C-7",0.4,null,"C-7",0.5,null,"C-7",0.01]
[null,"C-6",0.2,null,"C-6",0.2,null,"C-6",0.3,null,"C-6",0.1,null,"C-6",0.25,null,"C-6",0.25,null,"C-6",0.01]
[null,"C-5",0.01,null,"C-5",0.01,null,"C-5",0.01,null,"C-5",0.01,null,"C-5",0.1,null,"C-5",0.01,null,"C-5",0.01]
[null,"C-4",0.01,null,"C-4",0.01,null,"C-4",0.01,null,"C-4",0.01,null,"C-4",0.01,null,"C-4",0.01,null,"C-4",0.01]
[null,"C-3",0.01,null,"C-3",0.01,null,"C-3",0.01,null,"C-3",0.01,null,"C-3",0.01,null,"C-3",0.01,null,"C-3",0.01]
[null,"C-2",0.01,null,"C-2",0.01,null,"C-2",0.01,null,"C-2",0.01,null,"C-2",0.01,null,"C-2",0.01,null,"C-2",0.01]
[null,"C-1",0.01,null,"C-1",0.01,null,"C-1",0.01,null,"C-1",0.01,null,"C-1",0.01,null,"C-1",0.01,null,"C-1",0.01]
[null,"Incomplete",0.01,null,"Incomplete",0.01,null,"Incomplete",0.01,null,"Incomplete",0.01,null,"Incomplete",0.15,null,"Incomplete",0.15,null,"Incomplete",0.01]
[]
[]
[null,"NIKTO",null,null,"PRUNEFACE",null,null,"RANCOR KEEPER",null,null,"REBEL COMMANDO",null,null,"REE YEES",null,null,"SQUIDHEAD",null,null,"TEEBO"]
[null,"Ratings","Percentages",null,"Ratings","Percentages",null,"Ratings","Percentages",null,"Ratings","Percentages",null,"Ratings","Percentages",null,"Ratings","Percentages",null,"Ratings","Percentages"]
[null,"C-9",1,null,"C-9",1,null,"C-9",1,null,"C-9",1,null,"C-9",1,null,"C-9",1,null,"C-9",1]
[null,"C-8",0.8,null,"C-8",0.7,null,"C-8",0.8,null,"C-8",0.5,null,"C-8",0.7,null,"C-8",0.7,null,"C-8",0.8]
[null,"C-7",0.5,null,"C-7",0.01,null,"C-7",0.5,null,"C-7",0.01,null,"C-7",0.01,null,"C-7",0.01,null,"C-7",0.5]
[null,"C-6",0.01,null,"C-6",0.01,null,"C-6",0.01,null,"C-6",0.01,null,"C-6",0.01,null,"C-6",0.01,null,"C-6",0.01]
[null,"C-5",0.01,null,"C-5",0.01,null,"C-5",0.01,null,"C-5",0.01,null,"C-5",0.01,null,"C-5",0.01,null,"C-5",0.01]
[null,"C-4",0.01,null,"C-4",0.01,null,"C-4",0.01,null,"C-4",0.01,null,"C-4",0.01,null,"C-4",0.01,null,"C-4",0.01]
[null,"C-3",0.01,null,"C-3",0.01,null,"C-3",0.01,null,"C-3",0.01,null,"C-3",0.01,null,"C-3",0.01,null,"C-3",0.01]
[null,"C-2",0.01,null,"C-2",0.01,null,"C-2",0.01,null,"C-2",0.01,null,"C-2",0.01,null,"C-2",0.01,null,"C-2",0.01]
[null,"C-1",0.01,null,"C-1",0.01,null,"C-1",0.01,null,"C-1",0.01,null,"C-1",0.01,null,"C-1",0.01,null,"C-1",0.01]
[null,"Incomplete",0.01,null,"Incomplete",0.01,null,"Incomplete",0.01,null,"Incomplete",0.01,null,"Incomplete",0.01,null,"Incomplete",0.01,null,"Incomplete",0.01]
[]
[null,"WEEQUAY",null,null,"WICKET"]
[null,"Ratings","Percentages",null,"Ratings","Percentages"]
[null,"C-9",1,null,"C-9",1]
[null,"C-8",0.7,null,"C-8",0.7]
[null,"C-7",0.01,null,"C-7",0.5]
[null,"C-6",0.01,null,"C-6",0.3]
[null,"C-5",0.01,null,"C-5",0.01]
[null,"C-4",0.01,null,"C-4",0.01]
[null,"C-3",0.01,null,"C-3",0.01]
[null,"C-2",0.01,null,"C-2",0.01]
[null,"C-1",0.01,null,"C-1",0.01]
[null,"Incomplete",0.01,null,"Incomplete",0.01]

{"sheet":"POTF","index":4,"n_rows":41,"n_cols":21,"rows_kept":41,"cut":false,"hidden":true,"merged":[[29,19,29,20],[43,1,43,2],[43,4,43,5],[43,7,43,8],[43,10,43,11],[29,1,29,2],[29,4,29,5],[29,7,29,8],[29,10,29,11],[29,13,29,14],[29,16,29,17],[1,19,1,20],[15,1,15,2],[15,4,15,5],[15,7,15,8],[15,10,15,11],[15,13,15,14],[15,16,15,17],[15,19,15,20],[1,1,1,2],[1,4,1,5],[1,7,1,8],[1,10,1,11],[1,13,1,14],[1,16,1,17]]}
[]
[null,"AMANAMAN",null,null,"ANAKIN",null,null,"A-WING PILOT",null,null,"BARADA",null,null,"EV-9D9",null,null,"HAN CARBONITE",null,null,"IMPERIAL DIGNITARY"]
[null,"Ratings","Percentages",null,"Ratings","Percentages",null,"Ratings","Percentages",null,"Ratings","Percentages",null,"Ratings","Percentages",null,"Ratings","Percentages",null,"Ratings","Percentages"]
[null,"C-9",1,null,"C-9",1,null,"C-9",1,null,"C-9",1,null,"C-9",1,null,"C-9",1,null,"C-9",1]
[null,"C-8",0.67,null,"C-8",0.67,null,"C-8",0.7,null,"C-8",0.85,null,"C-8",0.68,null,"C-8",0.75,null,"C-8",0.8]
[null,"C-7",0.55600000000000005,null,"C-7",0.55600000000000005,null,"C-7",0.5,null,"C-7",0.68,null,"C-7",0.44,null,"C-7",0.67,null,"C-7",0.72]
[null,"C-6",0.28999999999999998,null,"C-6",0.28999999999999998,null,"C-6",0.375,null,"C-6",0.4,null,"C-6",0.3,null,"C-6",0.5,null,"C-6",0.64]
[null,"C-5",0.15,null,"C-5",0.15,null,"C-5",0.3,null,"C-5",0.34,null,"C-5",0.25,null,"C-5",0.4,null,"C-5",0.4]
[null,"C-4",0.1,null,"C-4",0.1,null,"C-4",0.2,null,"C-4",0.2,null,"C-4",0.2,null,"C-4",0.2,null,"C-4",0.1]
[null,"C-3",7.4999999999999997E-2,null,"C-3",7.4999999999999997E-2,null,"C-3",0.1,null,"C-3",0.1,null,"C-3",0.1,null,"C-3",0.1,null,"C-3",0.05]
[null,"C-2",0.05,null,"C-2",0.05,null,"C-2",0.1,null,"C-2",0.1,null,"C-2",0.1,null,"C-2",0.1,null,"C-2",0.05]
[null,"C-1",2.5000000000000001E-2,null,"C-1",2.5000000000000001E-2,null,"C-1",0.1,null,"C-1",0.1,null,"C-1",0.1,null,"C-1",0.1,null,"C-1",0.05]
[null,"Incomplete",0.15,null,"Incomplete",0.15,null,"Incomplete",0.1,null,"Incomplete",0.1,null,"Incomplete",0.1,null,"Incomplete",0.2,null,"Incomplete",0.1]
[]
[]
[null,"IMPERIAL GUNNER",null,null,"LANDO GENERAL",null,null,"LUKE BATTLE PONCHO",null,null,"LUKE STORMTROOPER",null,null,"LUMAT",null,null,"PAPLOO",null,null,"R2-D2 POP-UP SABER"]
[null,"Ratings","Percentages",null,"Ratings","Percentages",null,"Ratings","Percentages",null,"Ratings","Percentages",null,"Ratings","Percentages",null,"Ratings","Percentages",null,"Ratings","Percentages"]
[null,"C-9",1,null,"C-9",1,null,"C-9",1,null,"C-9",1,null,"C-9",1,null,"C-9",1,null,"C-9",1]
[null,"C-8",0.74,null,"C-8",0.8,null,"C-8",0.86,null,"C-8",0.56999999999999995,null,"C-8",0.75,null,"C-8",0.75,null,"C-8",0.8]
[null,"C-7",0.5,null,"C-7",0.57999999999999996,null,"C-7",0.57999999999999996,null,"C-7",0.33500000000000002,null,"C-7",0.6,null,"C-7",0.6,null,"C-7",0.57499999999999996]
[null,"C-6",0.3,null,"C-6",0.5,null,"C-6",0.5,null,"C-6",0.2,null,"C-6",0.4,null,"C-6",0.4,null,"C-6",0.28999999999999998]
[null,"C-5",0.2,null,"C-5",0.3,null,"C-5",0.3,null,"C-5",0.1,null,"C-5",0.3,null,"C-5",0.3,null,"C-5",0.15]
[null,"C-4",0.1,null,"C-4",0.1,null,"C-4",0.1,null,"C-4",0.05,null,"C-4",0.1,null,"C-4",0.1,null,"C-4",0.05]
[null,"C-3",0.1,null,"C-3",0.1,null,"C-3",0.1,null,"C-3",2.5000000000000001E-2,null,"C-3",0.1,null,"C-3",0.1,null,"C-3",2.5000000000000001E-2]
[null,"C-2",0.1,null,"C-2",0.1,null,"C-2",0.1,null,"C-2",0.02,null,"C-2",0.05,null,"C-2",0.05,null,"C-2",1.9E-2]
[null,"C-1",0.05,null,"C-1",0.1,null,"C-1",0.1,null,"C-1",1E-3,null,"C-1",0.05,null,"C-1",0.05,null,"C-1",2.5000000000000001E-2]
[null,"Incomplete",0.1,null,"Incomplete",0.2,null,"Incomplete",0.2,null,"Incomplete",0.1,null,"Incomplete",0.05,null,"Incomplete",0.05,null,"Incomplete",0.15]
[]
[]
[null,"ROMBA",null,null,"WAROK",null,null,"YAK FACE"]
[null,"Ratings","Percentages",null,"Ratings","Percentages",null,"Ratings","Percentages"]
[null,"C-9",1,null,"C-9",1,null,"C-9",1]
[null,"C-8",0.75,null,"C-8",0.74,null,"C-8",0.67]
[null,"C-7",0.6,null,"C-7",0.65,null,"C-7",0.55600000000000005]
[null,"C-6",0.4,null,"C-6",0.37,null,"C-6",0.28999999999999998]
[null,"C-5",0.3,null,"C-5",0.01,null,"C-5",0.15]
[null,"C-4",0.1,null,"C-4",0.01,null,"C-4",0.1]
[null,"C-3",0.1,null,"C-3",0.01,null,"C-3",7.4999999999999997E-2]
[null,"C-2",0.05,null,"C-2",0.01,null,"C-2",0.05]
[null,"C-1",0.05,null,"C-1",0.01,null,"C-1",2.5000000000000001E-2]
[null,"Incomplete",0.05,null,"Incomplete",0.17,null,"Incomplete",0.15]

{"sheet":"RARE","index":5,"n_rows":41,"n_cols":21,"rows_kept":41,"cut":false,"hidden":true,"merged":[[1,19,1,20],[15,19,15,20],[29,16,29,17],[43,1,43,2],[43,4,43,5],[43,7,43,8],[43,10,43,11],[29,1,29,2],[29,4,29,5],[29,7,29,8],[29,10,29,11],[29,13,29,14],[1,16,1,17],[15,1,15,2],[15,4,15,5],[15,7,15,8],[15,10,15,11],[15,13,15,14],[15,16,15,17],[1,1,1,2],[1,4,1,5],[1,7,1,8],[1,10,1,11],[1,13,1,14]]}
[]
[null,"Ben Kenobi (Double Telescoping Saber) AFA 85",null,null,"Blue Snaggletooth AFA 85",null,null,"Boba Fett (Sealed in Kenner Mailer Box)",null,null,"Boba Fett (Tri-Logo paint below knee)",null,null,"Chewbacca (green crossbow)",null,null,"Darth Vader Double (Double Telescoping Saber) AFA 85",null,null,"Death Star Monster"]
[null,"Ratings","Percentages",null,"Ratings","Percentages",null,"Ratings","Percentages",null,"Ratings","Percentages",null,"Ratings","Percentages",null,"Ratings","Percentages",null,"Ratings","Percentages"]
[null,"C-9",1,null,"C-9",1,null,"C-9",1,null,"C-9",1,null,"C-9",1,null,"C-9",1,null,"C-9",1]
[null,"C-8",0.626,null,"C-8",0.58899999999999997,null,"C-8",0.8,null,"C-8",0.7,null,"C-8",0.6,null,"C-8",0.626,null,"C-8",0.6]
[null,"C-7",0.5,null,"C-7",0.66800000000000004,null,"C-7",0.6,null,"C-7",0.5,null,"C-7",0.4,null,"C-7",0.5,null,"C-7",0.4]
[null,"C-6",0.28999999999999998,null,"C-6",0.2,null,"C-6",0.28999999999999998,null,"C-6",0.28999999999999998,null,"C-6",0.25,null,"C-6",0.28999999999999998,null,"C-6",0.25]
[null,"C-5",0.15,null,"C-5",0.15,null,"C-5",0.15,null,"C-5",0.15,null,"C-5",0.1,null,"C-5",0.15,null,"C-5",0.1]
[null,"C-4",0.1,null,"C-4",0.1,null,"C-4",0.1,null,"C-4",0.1,null,"C-4",0.01,null,"C-4",0.1,null,"C-4",0.01]
[null,"C-3",7.4999999999999997E-2,null,"C-3",0.05,null,"C-3",7.4999999999999997E-2,null,"C-3",7.4999999999999997E-2,null,"C-3",0.01,null,"C-3",7.4999999999999997E-2,null,"C-3",0.01]
[null,"C-2",0.05,null,"C-2",0.03,null,"C-2",0.05,null,"C-2",0.05,null,"C-2",0.01,null,"C-2",0.05,null,"C-2",0.01]
[null,"C-1",2.5000000000000001E-2,null,"C-1",0.01,null,"C-1",0.01,null,"C-1",0.01,null,"C-1",0.01,null,"C-1",2.5000000000000001E-2,null,"C-1",0.01]
[null,"Incomplete",2.5000000000000001E-2,null,"Incomplete",0.15,null,"Incomplete",2.5000000000000001E-2,null,"Incomplete",0.28999999999999998,null,"Incomplete",0.01,null,"Incomplete",2.5000000000000001E-2,null,"Incomplete",0.01]
[]
[]
[null,"Luke Skywalker (brown hair)",null,null,"Luke Skywalker (Double Telescoping Saber) AFA 85",null,null,"R2-D2 (wind-up)",null,null,"Tusken Raider (hollow cheeks)",null,null,"Uzay Blue Stars AFA 85",null,null,"Uzay Headman AFA 85",null,null,"Vinyl Caped Jawa"]
[null,"Ratings","Percentages",null,"Ratings","Percentages",null,"Ratings","Percentages",null,"Ratings","Percentages",null,"Ratings","Percentages",null,"Ratings","Percentages",null,"Ratings","Percentages"]
[null,"C-9",1,null,"C-9",1,null,"C-9",1,null,"C-9",1,null,"C-9",1,null,"C-9",1,null,"C-9",1]
[null,"C-8",0.67,null,"C-8",0.67,null,"C-8",0.75,null,"C-8",0.72,null,"C-8",0.67,null,"C-8",0.83499999999999996,null,"C-8",0.65]
[null,"C-7",0.48,null,"C-7",0.45,null,"C-7",0.5,null,"C-7",0.43,null,"C-7",0.5,null,"C-7",0.5,null,"C-7",0.4]
[null,"C-6",0.28999999999999998,null,"C-6",0.27800000000000002,null,"C-6",0.28999999999999998,null,"C-6",0.25,null,"C-6",0.28999999999999998,null,"C-6",0.28999999999999998,null,"C-6",0.28999999999999998]
[null,"C-5",0.15,null,"C-5",0.1,null,"C-5",0.15,null,"C-5",0.1,null,"C-5",0.15,null,"C-5",0.15,null,"C-5",0.15]
[null,"C-4",0.01,null,"C-4",0.05,null,"C-4",0.1,null,"C-4",0.05,null,"C-4",0.1,null,"C-4",0.1,null,"C-4",0.1]
[null,"C-3",0.01,null,"C-3",2.5000000000000001E-2,null,"C-3",7.4999999999999997E-2,null,"C-3",2.5000000000000001E-2,null,"C-3",7.4999999999999997E-2,null,"C-3",7.4999999999999997E-2,null,"C-3",7.4999999999999997E-2]
[null,"C-2",0.01,null,"C-2",1.9E-2,null,"C-2",0.05,null,"C-2",1.9E-2,null,"C-2",0.05,null,"C-2",0.05,null,"C-2",0.05]
[null,"C-1",0.01,null,"C-1",1.2E-2,null,"C-1",2.5000000000000001E-2,null,"C-1",1.2E-2,null,"C-1",2.5000000000000001E-2,null,"C-1",2.5000000000000001E-2,null,"C-1",2.5000000000000001E-2]
[null,"Incomplete",0.2,null,"Incomplete",2.5000000000000001E-2,null,"Incomplete",0.15,null,"Incomplete",0.25,null,"Incomplete",2.5000000000000001E-2,null,"Incomplete",2.5000000000000001E-2,null,"Incomplete",0.15]
[]
[]
[null,"VLIX",null,null,"Yoda (green snake)"]
[null,"Ratings","Percentages",null,"Ratings","Percentages"]
[null,"C-9",1,null,"C-9",1]
[null,"C-8",0.8,null,"C-8",0.72]
[null,"C-7",0.6,null,"C-7",0.48]
[null,"C-6",0.28999999999999998,null,"C-6",0.28999999999999998]
[null,"C-5",0.15,null,"C-5",0.1]
[null,"C-4",0.1,null,"C-4",0.05]
[null,"C-3",7.4999999999999997E-2,null,"C-3",2.5000000000000001E-2]
[null,"C-2",0.05,null,"C-2",1.9E-2]
[null,"C-1",2.5000000000000001E-2,null,"C-1",1.2E-2]
[null,"Incomplete",0.15,null,"Incomplete",1E-3]

{"sheet":"DROIDS","index":6,"n_rows":27,"n_cols":21,"rows_kept":27,"cut":false,"hidden":true,"merged":[[29,19,29,20],[43,1,43,2],[43,4,43,5],[43,7,43,8],[43,10,43,11],[29,1,29,2],[29,4,29,5],[29,7,29,8],[29,10,29,11],[29,13,29,14],[29,16,29,17],[1,19,1,20],[15,1,15,2],[15,4,15,5],[15,7,15,8],[15,10,15,11],[15,13,15,14],[15,16,15,17],[15,19,15,20],[1,1,1,2],[1,4,1,5],[1,7,1,8],[1,10,1,11],[1,13,1,14],[1,16,1,17]]}
[]
[null,"C-3PO",null,null,"JANN TOSH",null,null,"JORD DUSAT",null,null,"KEA MOLL",null,null,"KEZ-IBAN",null,null,"R2-D2",null,null,"SISE FROMM"]
[null,"Ratings","Percentages",null,"Ratings","Percentages",null,"Ratings","Percentages",null,"Ratings","Percentages",null,"Ratings","Percentages",null,"Ratings","Percentages",null,"Ratings","Percentages"]
[null,"C-9",1,null,"C-9",1,null,"C-9",1,null,"C-9",1,null,"C-9",1,null,"C-9",1,null,"C-9",1]
[null,"C-8",0.71899999999999997,null,"C-8",0.84,null,"C-8",0.8,null,"C-8",0.57999999999999996,null,"C-8",0.57999999999999996,null,"C-8",0.71799999999999997,null,"C-8",0.75]
[null,"C-7",0.43,null,"C-7",0.67,null,"C-7",0.6,null,"C-7",0.4,null,"C-7",0.4,null,"C-7",0.43,null,"C-7",0.5]
[null,"C-6",0.25,null,"C-6",0.25,null,"C-6",0.4,null,"C-6",0.25,null,"C-6",0.25,null,"C-6",0.25,null,"C-6",0.25]
[null,"C-5",0.15,null,"C-5",0.1,null,"C-5",0.2,null,"C-5",0.1,null,"C-5",0.1,null,"C-5",0.15,null,"C-5",0.15]
[null,"C-4",0.05,null,"C-4",0.08,null,"C-4",0.01,null,"C-4",1E-3,null,"C-4",1E-3,null,"C-4",0.05,null,"C-4",0.05]
[null,"C-3",2.5000000000000001E-2,null,"C-3",0.01,null,"C-3",0.01,null,"C-3",1E-3,null,"C-3",1E-3,null,"C-3",2.5000000000000001E-2,null,"C-3",2.5000000000000001E-2]
[null,"C-2",1E-3,null,"C-2",0.01,null,"C-2",0.01,null,"C-2",1E-3,null,"C-2",1E-3,null,"C-2",1E-3,null,"C-2",1E-3]
[null,"C-1",1E-3,null,"C-1",0.01,null,"C-1",0.01,null,"C-1",1E-3,null,"C-1",1E-3,null,"C-1",1E-3,null,"C-1",1E-3]
[null,"Incomplete",0.05,null,"Incomplete",0.1,null,"Incomplete",0.1,null,"Incomplete",0.1,null,"Incomplete",0.1,null,"Incomplete",0.05,null,"Incomplete",0.15]
[]
[]
[null,"THALL JOBEN",null,null,"TIG FROMM",null,null,"UNCLE GUNDY"]
[null,"Ratings","Percentages",null,"Ratings","Percentages",null,"Ratings","Percentages"]
[null,"C-9",1,null,"C-9",1,null,"C-9",1]
[null,"C-8",0.57999999999999996,null,"C-8",0.78,null,"C-8",0.57999999999999996]
[null,"C-7",0.4,null,"C-7",0.56000000000000005,null,"C-7",0.4]
[null,"C-6",0.25,null,"C-6",0.25,null,"C-6",0.25]
[null,"C-5",0.1,null,"C-5",0.15,null,"C-5",0.1]
[null,"C-4",1E-3,null,"C-4",0.05,null,"C-4",1E-3]
[null,"C-3",1E-3,null,"C-3",2.5000000000000001E-2,null,"C-3",1E-3]
[null,"C-2",1E-3,null,"C-2",1E-3,null,"C-2",1E-3]
[null,"C-1",1E-3,null,"C-1",1E-3,null,"C-1",1E-3]
[null,"Incomplete",0.1,null,"Incomplete",0.15,null,"Incomplete",0.1]

{"sheet":"EWOK","index":7,"n_rows":13,"n_cols":18,"rows_kept":13,"cut":false,"hidden":true,"merged":[[15,16,15,17],[15,19,15,20],[1,1,1,2],[1,4,1,5],[1,7,1,8],[1,10,1,11],[1,13,1,14],[1,16,1,17],[15,1,15,2],[15,4,15,5],[15,7,15,8],[15,10,15,11],[15,13,15,14]]}
[]
[null,"Dulok Scout",null,null,"Dulok Shaman",null,null,"King Gorneesh",null,null,"Logray",null,null,"Urgah Lady Gorneesh",null,null,"Wicket"]
[null,"Ratings","Percentages",null,"Ratings","Percentages",null,"Ratings","Percentages",null,"Ratings","Percentages",null,"Ratings","Percentages",null,"Ratings","Percentages"]
[null,"C-9",1,null,"C-9",1,null,"C-9",1,null,"C-9",1,null,"C-9",1,null,"C-9",1]
[null,"C-8",0.7,null,"C-8",0.7,null,"C-8",0.7,null,"C-8",0.8,null,"C-8",0.7,null,"C-8",0.8]
[null,"C-7",0.55000000000000004,null,"C-7",0.55000000000000004,null,"C-7",0.55000000000000004,null,"C-7",0.6,null,"C-7",0.55000000000000004,null,"C-7",0.68]
[null,"C-6",0.25,null,"C-6",0.25,null,"C-6",0.25,null,"C-6",0.25,null,"C-6",0.25,null,"C-6",0.25]
[null,"C-5",0.1,null,"C-5",0.1,null,"C-5",0.1,null,"C-5",0.1,null,"C-5",0.1,null,"C-5",0.1]
[null,"C-4",0.01,null,"C-4",0.01,null,"C-4",0.01,null,"C-4",0.01,null,"C-4",0.01,null,"C-4",0.01]
[null,"C-3",0.01,null,"C-3",0.01,null,"C-3",0.01,null,"C-3",0.01,null,"C-3",0.01,null,"C-3",0.01]
[null,"C-2",0.01,null,"C-2",0.01,null,"C-2",0.01,null,"C-2",0.01,null,"C-2",0.01,null,"C-2",0.01]
[null,"C-1",0.01,null,"C-1",0.01,null,"C-1",0.01,null,"C-1",0.01,null,"C-1",0.01,null,"C-1",0.01]
[null,"Incomplete",0.1,null,"Incomplete",0.1,null,"Incomplete",0.1,null,"Incomplete",0.1,null,"Incomplete",0.1,null,"Incomplete",0.1]

{"sheet":"PURCHASE HISTORY","index":8,"n_rows":11,"n_cols":1,"rows_kept":11,"cut":false,"hidden":true,"merged":[]}
[]
["C-9"]
["C-8"]
["C-7"]
["C-6"]
["C-5"]
["C-4"]
["C-3"]
["C-2"]
["C-1"]
["Incomplete"]